{"text_format":"1","workbook":"xlsx","n_sheets":14,"sheets":["Titulní","Seznam firem","Tabulky","služby","Úklid podlah","Úklid sněhu","Mytí oken","Mytí obkladů","Security","Hasicí přístroje","výtahy","Klima","Grafy","List1"],"not_rendered":{"charts":20,"images":1,"macros":1,"external_links":0,"defined_names":1,"comments":0,"pivot_tables":0},"unopened":[],"bounds":{"document_bytes":16777216,"sheet_cells":100000,"rows_first":2000,"rows_last":500,"rows_between":2000,"halvings":0,"cell_chars":16384,"cell_head_chars":4096},"cells_cut":0,"cells_raw":0,"read":"whole","date_system":"1900"}

{"sheet":"Titulní","index":0,"n_rows":40,"n_cols":4,"rows_kept":40,"cut":false,"hidden":false,"merged":[]}
[null,null,"ČESKÉ VYSOKÉ UČENÍ TECHNICKÉ"]
[null,null,"FAKULTA STAVEBNÍ"]
[null,null,"Management a ekonomika ve stavebnictví"]
[]
[]
[null,null,1]
[null,null,8]
[]
[]
[]
[]
[]
[]
[]
[]
[]
[]
[]
[null,null,"Výběr dodavatele podpůrných služeb"]
[]
[]
[]
["Město"]
["Služba"]
["Množství",100,{"$f":"VLOOKUP(Tabulky!C4,Tabulky!A7:D14,4,0)","v":"m2"}]
["Cena za km",25,"Kč/km"]
[]
["Firmy:"]
[null,"Název poskytovatele",null,"RPM Service CZ a.s."]
[null,"Město",null,"Praha"]
[null,"Ulice",null,"Moskevská 63/659"]
[null,"PSČ",null,"101 16"]
[null,"Telefon",null," 272 099 600"]
[null,"E-mail",null,"obchod@rpmservice.cz"]
[null,"www",null,"www.rpmservice.cz"]
[null,"Vydálenost [km]",null,6.3]
[null,{"$f":"\"Cena za jednotku [\"&VLOOKUP(Tabulky!C4,Tabulky!A7:C14,3,0)&\"]\"","v":"Cena za jednotku [Kč/m2]"},null,6]
[null,"Cena služby [Kč]",null,600]
[null,"Cena dopravy [Kč]",null,157.5]
[null,"Celková cena [Kč]",null,757.5]

{"sheet":"Seznam firem","index":1,"n_rows":104,"n_cols":28,"rows_kept":104,"cut":false,"hidden":false,"merged":[]}
["ID",null,"Název poskytovatele","Město","Ulice","PSČ","Telefon","E-mail","HTTP","Vzdálenost","Mytí obkladů","Mytí oken a výloh","Revize hasících přístrojů","Revize výtahů","Revize vzduchotechniky","Security služby","Úklid podlah","Úklid sněhu","Praha","Plzeň","Příbram","Liberec","České Budejovice","Tábor","Kladno","Mladá boleslav","Hradec králové","Celková cena"]
[1,null,"COOL Facillity s.r.o.","Praha","Švábky 52","180 00",777790005,"info@completeservice.cz","www.completeservice.cz",{"$f":"VLOOKUP(A2,A2:AA2,18+Tabulky!$C$3)","v":8},40,6,null,null,null,null,2,null,8,105,68.5,106,155,96.3,31,60,114,{"$f":"IF(VLOOKUP(A2,A2:AA2,10+Tabulky!$C$4)=\"\",\"\",J2*Titulní!$B$26+VLOOKUP(A2,A2:AA2,10+Tabulky!$C$4)*Titulní!$B$25)","v":800}]
[2,null,"Úklidové služby","Praha","V Nových Vokovicích 149","160 00",602238073,"www.uklidovesluzby.cz","www.uklidovesluzby.cz",{"$f":"VLOOKUP(A3,A3:AA3,18+Tabulky!$C$3)","v":8.5},35,8,null,null,null,null,2.5,null,8.5,95,71,114,164,102,21,68,128,{"$f":"IF(VLOOKUP(A3,A3:AA3,10+Tabulky!$C$4)=\"\",\"\",J3*Titulní!$B$26+VLOOKUP(A3,A3:AA3,10+Tabulky!$C$4)*Titulní!$B$25)","v":1012.5}]
[3,null,"EuroProfi Clean v.o.s","Praha","Cílkova 639/24","142 00",777595854,"epc@europroficlean.cz ","www.europroficlean.cz",{"$f":"VLOOKUP(A4,A4:AA4,18+Tabulky!$C$3)","v":10.3},30,11,null,null,null,null,1.7,null,10.3,98,57,112,103,89,44,66,116,{"$f":"IF(VLOOKUP(A4,A4:AA4,10+Tabulky!$C$4)=\"\",\"\",J4*Titulní!$B$26+VLOOKUP(A4,A4:AA4,10+Tabulky!$C$4)*Titulní!$B$25)","v":1357.5}]
[4,null,"Ksena.s.r.o.","Praha","Dářská 275/14","198 00",777595854,"reditel.uklid@ksena.cz  ","www.uklidove-prace-ksena.cz",{"$f":"VLOOKUP(A5,A5:AA5,18+Tabulky!$C$3)","v":19.5},null,13,null,null,null,null,3,null,19.5,108,70,98,153,95,53,52,118,{"$f":"IF(VLOOKUP(A5,A5:AA5,10+Tabulky!$C$4)=\"\",\"\",J5*Titulní!$B$26+VLOOKUP(A5,A5:AA5,10+Tabulky!$C$4)*Titulní!$B$25)","v":1787.5}]
[5,null,"D&D s.r.o.","Praha","Výletní 398/27","142 00",244470604,"info@ddservis.eu","www.dd-uklid-praha.cz",{"$f":"VLOOKUP(A6,A6:AA6,18+Tabulky!$C$3)","v":11.8},32,10,null,null,null,null,2.5,null,11.8,103,59,113,147,88,48,67.5,117,{"$f":"IF(VLOOKUP(A6,A6:AA6,10+Tabulky!$C$4)=\"\",\"\",J6*Titulní!$B$26+VLOOKUP(A6,A6:AA6,10+Tabulky!$C$4)*Titulní!$B$25)","v":1295}]
[6,null,"DOLEŽAL-DUHA, s. r. o.","Praha","Podolská 241/23,","147 00"," 733 640 206","info@duha.eu","www.duha-uklid.cz",{"$f":"VLOOKUP(A7,A7:AA7,18+Tabulky!$C$3)","v":3.2},null,12,null,null,null,null,3,null,3.2,96.5,56,113.5,148,90,42,66.7,116,{"$f":"IF(VLOOKUP(A7,A7:AA7,10+Tabulky!$C$4)=\"\",\"\",J7*Titulní!$B$26+VLOOKUP(A7,A7:AA7,10+Tabulky!$C$4)*Titulní!$B$25)","v":1280}]
[7,null,"David Plecitý","Praha","Dubnova 807","149 00",602332178,"dplecity@volny.cz","www.uklidplecity.cz",{"$f":"VLOOKUP(A8,A8:AA8,18+Tabulky!$C$3)","v":13.7},null,10,null,null,null,null,8,null,13.7,102,64.5,107,143,84.6,48,61,111,{"$f":"IF(VLOOKUP(A8,A8:AA8,10+Tabulky!$C$4)=\"\",\"\",J8*Titulní!$B$26+VLOOKUP(A8,A8:AA8,10+Tabulky!$C$4)*Titulní!$B$25)","v":1342.5}]
[8,null,"A.W.I.S.","Praha","Na Plzeňce 1236/4","150 00",222531104,"info@uklidy-kancelari.cz","www.uklidy-kancelari.cz",{"$f":"VLOOKUP(A9,A9:AA9,18+Tabulky!$C$3)","v":1},null,12,null,null,null,null,7,5,1,95.1,57.7,116,152,94,40.700000000000003,70.5,120,{"$f":"IF(VLOOKUP(A9,A9:AA9,10+Tabulky!$C$4)=\"\",\"\",J9*Titulní!$B$26+VLOOKUP(A9,A9:AA9,10+Tabulky!$C$4)*Titulní!$B$25)","v":1225}]
[9,null,"Herakles","Praha","Marie Cibulkové 14","140 00",222934038,"jirisvatek.herakles@seznam.cz","www.adherakles.cz",{"$f":"VLOOKUP(A10,A10:AA10,18+Tabulky!$C$3)","v":3.7},38,8,null,null,null,null,2.8,3,3.7,97.2,60,112,148,89.9,43,66.7,116,{"$f":"IF(VLOOKUP(A10,A10:AA10,10+Tabulky!$C$4)=\"\",\"\",J10*Titulní!$B$26+VLOOKUP(A10,A10:AA10,10+Tabulky!$C$4)*Titulní!$B$25)","v":892.5}]
[10,null,"VYČISTÍM CZ","Praha","Zborovská 4","150 00",606741841,"info@vycistim.cz","www.vycistim.cz",{"$f":"VLOOKUP(A11,A11:AA11,18+Tabulky!$C$3)","v":0.5},70,14,null,null,null,null,4,null,0.5,90.6,58,117,153,94,32,71,121,{"$f":"IF(VLOOKUP(A11,A11:AA11,10+Tabulky!$C$4)=\"\",\"\",J11*Titulní!$B$26+VLOOKUP(A11,A11:AA11,10+Tabulky!$C$4)*Titulní!$B$25)","v":1412.5}]
[11,null,"Mytí oken s.r.o.","Praha","Na Harfě 7","198 00",603232515,"uklid@mytioken.cz","www.mytioken.cz",{"$f":"VLOOKUP(A12,A12:AA12,18+Tabulky!$C$3)","v":10.7},null,8,null,null,null,null,null,null,10.7,111,73,101,156,97.6,34.700000000000003,54,106,{"$f":"IF(VLOOKUP(A12,A12:AA12,10+Tabulky!$C$4)=\"\",\"\",J12*Titulní!$B$26+VLOOKUP(A12,A12:AA12,10+Tabulky!$C$4)*Titulní!$B$25)","v":1067.5}]
[12,null,"Úklidová četa","Praha","Jičínská 37","130 00",608947845,"info@uklidovaceta.cz","www.uklidovaceta.cz",{"$f":"VLOOKUP(A13,A13:AA13,18+Tabulky!$C$3)","v":5.7},null,15,null,null,null,null,2.9,null,5.7,104,66.5,106,149,90.4,31.8,60.8,112,{"$f":"IF(VLOOKUP(A13,A13:AA13,10+Tabulky!$C$4)=\"\",\"\",J13*Titulní!$B$26+VLOOKUP(A13,A13:AA13,10+Tabulky!$C$4)*Titulní!$B$25)","v":1642.5}]
[13,null,"AB Prokir spol. s r.o.","Praha","Magistrů 921/9","140 00",602332948,"prokir@prokir.cz","www.prokir.cz",{"$f":"VLOOKUP(A14,A14:AA14,18+Tabulky!$C$3)","v":5.5},null,9.5,null,null,null,null,10,null,5.5,100,62.7,109,147,88.5,43.7,63.4,113,{"$f":"IF(VLOOKUP(A14,A14:AA14,10+Tabulky!$C$4)=\"\",\"\",J14*Titulní!$B$26+VLOOKUP(A14,A14:AA14,10+Tabulky!$C$4)*Titulní!$B$25)","v":1087.5}]
[14,null,"RPM Service CZ a.s.","Praha","Moskevská 63/659","101 16"," 272 099 600","obchod@rpmservice.cz","www.rpmservice.cz",{"$f":"VLOOKUP(A15,A15:AA15,18+Tabulky!$C$3)","v":6.3},null,6,null,null,null,null,2,null,6.3,101,63.9,108,146,87.5,47,62.8,112.5,{"$f":"IF(VLOOKUP(A15,A15:AA15,10+Tabulky!$C$4)=\"\",\"\",J15*Titulní!$B$26+VLOOKUP(A15,A15:AA15,10+Tabulky!$C$4)*Titulní!$B$25)","v":757.5}]
[15,null,"Detai cleaning","Praha","Tovarova 1211","198 00",777926300,"info@detai.cz","www.detai.cz",{"$f":"VLOOKUP(A16,A16:AA16,18+Tabulky!$C$3)","v":21.3},null,null,null,null,null,null,null,13,21.3,110,72.8,100,155,97,56,145,104,{"$f":"IF(VLOOKUP(A16,A16:AA16,10+Tabulky!$C$4)=\"\",\"\",J16*Titulní!$B$26+VLOOKUP(A16,A16:AA16,10+Tabulky!$C$4)*Titulní!$B$25)","v":""}]
[16,null,"Komplexní úklid","Praha"," Šatrova 662",14200,603444507,"info@komplexni-uklid.cz","www.komplexni-uklid.cz",{"$f":"VLOOKUP(A17,A17:AA17,18+Tabulky!$C$3)","v":10.4},null,null,null,null,null,null,null,7,10.4,99.5,57.5,113,149,90.3,43,66.8,116,{"$f":"IF(VLOOKUP(A17,A17:AA17,10+Tabulky!$C$4)=\"\",\"\",J17*Titulní!$B$26+VLOOKUP(A17,A17:AA17,10+Tabulky!$C$4)*Titulní!$B$25)","v":""}]
[17,null,"Dopareal","Praha","Poznaňská 435",18100,604946096,"dopareal@gmail.com","www.dopareal.cz",{"$f":"VLOOKUP(A18,A18:AA18,18+Tabulky!$C$3)","v":13.4},null,null,null,null,null,null,null,8,13.4,99,71,108,159,100,33.5,62,116,{"$f":"IF(VLOOKUP(A18,A18:AA18,10+Tabulky!$C$4)=\"\",\"\",J18*Titulní!$B$26+VLOOKUP(A18,A18:AA18,10+Tabulky!$C$4)*Titulní!$B$25)","v":""}]
[18,null,"Šticha a syn s.r.o.","Praha","Choceradská 3044","141 00"," 777 844 726","info@stichaasyn.cz","www.stichaasyn.cz",{"$f":"VLOOKUP(A19,A19:AA19,18+Tabulky!$C$3)","v":11.5},null,null,null,null,null,null,null,2.4,11.5,100,63,108.5,144,85.4,44,62.4,112,{"$f":"IF(VLOOKUP(A19,A19:AA19,10+Tabulky!$C$4)=\"\",\"\",J19*Titulní!$B$26+VLOOKUP(A19,A19:AA19,10+Tabulky!$C$4)*Titulní!$B$25)","v":""}]
[19,null,"Miroslav Mlezviva","Kladno","Smetanova 284","273 45","725 370 545 ","miloslav.mleziva@uklidmleziva.cz","www.uklidmleziva.cz",{"$f":"VLOOKUP(A20,A20:AA20,18+Tabulky!$C$3)","v":26.8},null,null,null,null,null,null,null,5,26.8,83,81.400000000000006,147,175,123,1.9,101,150,{"$f":"IF(VLOOKUP(A20,A20:AA20,10+Tabulky!$C$4)=\"\",\"\",J20*Titulní!$B$26+VLOOKUP(A20,A20:AA20,10+Tabulky!$C$4)*Titulní!$B$25)","v":""}]
[20,null,"RP Security","Praha","Plavecká 8","128 00","774 676 665","info@rp-security.cz","www.rp-security.cz",{"$f":"VLOOKUP(A21,A21:AA21,18+Tabulky!$C$3)","v":2.1},null,null,null,null,null,85,null,null,2.1,91,60.3,111,150,91.3,32,66.5,117,{"$f":"IF(VLOOKUP(A21,A21:AA21,10+Tabulky!$C$4)=\"\",\"\",J21*Titulní!$B$26+VLOOKUP(A21,A21:AA21,10+Tabulky!$C$4)*Titulní!$B$25)","v":""}]
[21,null,"S a S security service, s.r.o.","Praha"," Ke Klimentce 15","150 00",257225555,"sas@sassecurity.cz","www.sassecurity.cz",{"$f":"VLOOKUP(A22,A22:AA22,18+Tabulky!$C$3)","v":5.5},null,null,null,null,null,103,null,null,5.5,86.9,60.9,119,156,97.3,28.6,73.7,123,{"$f":"IF(VLOOKUP(A22,A22:AA22,10+Tabulky!$C$4)=\"\",\"\",J22*Titulní!$B$26+VLOOKUP(A22,A22:AA22,10+Tabulky!$C$4)*Titulní!$B$25)","v":""}]
[22,null,"Security Cihlář","Praha","Polední 1029/29","147 00",774881892,"security-cihlar@email.cz","www.security-cihlar.cz",{"$f":"VLOOKUP(A23,A23:AA23,18+Tabulky!$C$3)","v":6.9},null,null,null,null,null,150,null,null,6.9,95.9,58.5,113,149,90.4,41.5,67,116,{"$f":"IF(VLOOKUP(A23,A23:AA23,10+Tabulky!$C$4)=\"\",\"\",J23*Titulní!$B$26+VLOOKUP(A23,A23:AA23,10+Tabulky!$C$4)*Titulní!$B$25)","v":""}]
[23,null,"RTH Security s.r.o.","Praha","Jaurisova 4","140 00",261213712,"obchod@rthgroup.cz","www.rthgroup.cz",{"$f":"VLOOKUP(A24,A24:AA24,18+Tabulky!$C$3)","v":5.0999999999999996},null,null,null,null,null,125,null,null,5.0999999999999996,100,62.8,110,147,89,43.8,63.9,113,{"$f":"IF(VLOOKUP(A24,A24:AA24,10+Tabulky!$C$4)=\"\",\"\",J24*Titulní!$B$26+VLOOKUP(A24,A24:AA24,10+Tabulky!$C$4)*Titulní!$B$25)","v":""}]
[24,null,"CBS PROFESIONAL security agency, a.s.","Praha","Na Rovnosti 2245/3","130 00"," 242441476","info@cbs.cz","www.cbs.cz",{"$f":"VLOOKUP(A25,A25:AA25,18+Tabulky!$C$3)","v":8.5},null,null,null,null,null,90,null,null,8.5,63.9,65.8,104,150,91.9,33.9,58.9,110,{"$f":"IF(VLOOKUP(A25,A25:AA25,10+Tabulky!$C$4)=\"\",\"\",J25*Titulní!$B$26+VLOOKUP(A25,A25:AA25,10+Tabulky!$C$4)*Titulní!$B$25)","v":""}]
[25,null,"V.I.P. SECURITY SERVICES s.r.o.","Praha","Za Elektrárnou 419","170 00",266727468,"info@prague-security.cz","www.prague-security.cz",{"$f":"VLOOKUP(A26,A26:AA26,18+Tabulky!$C$3)","v":6.6},null,null,null,null,null,180,null,null,6.6,94.5,65.599999999999994,107,153,94.7,28.1,61.1,115,{"$f":"IF(VLOOKUP(A26,A26:AA26,10+Tabulky!$C$4)=\"\",\"\",J26*Titulní!$B$26+VLOOKUP(A26,A26:AA26,10+Tabulky!$C$4)*Titulní!$B$25)","v":""}]
[26,null,"INUS Příbram s.r.o.","Příbram","Příbram VII, nám.17.listopadu 65","261 01",318628055,"inus@inus.cz inusuklid@volny.cz","http://inus.cz/",{"$f":"VLOOKUP(A27,A27:AA27,18+Tabulky!$C$3)","v":59},null,6,null,null,null,null,10,null,59,60.5,1.2,169,100,70,87.9,123,173,{"$f":"IF(VLOOKUP(A27,A27:AA27,10+Tabulky!$C$4)=\"\",\"\",J27*Titulní!$B$26+VLOOKUP(A27,A27:AA27,10+Tabulky!$C$4)*Titulní!$B$25)","v":2075}]
[27,null,"Gabriela Zetochová ","Příbram","Hanuše Jelínka 612 ","261 01","607 768 178 ","uklidzetochova@seznam.cz",null,{"$f":"VLOOKUP(A28,A28:AA28,18+Tabulky!$C$3)","v":61},null,12,null,null,null,null,null,null,61,61,1.8,172,102,69.5,86,125,175,{"$f":"IF(VLOOKUP(A28,A28:AA28,10+Tabulky!$C$4)=\"\",\"\",J28*Titulní!$B$26+VLOOKUP(A28,A28:AA28,10+Tabulky!$C$4)*Titulní!$B$25)","v":2725}]
[28,null,"Vanost s.r.o.","Příbram","Okružní 209","261 02","313 771 058 ","vanost@vanost.cz ","http://www.vanost.cz/",{"$f":"VLOOKUP(A29,A29:AA29,18+Tabulky!$C$3)","v":60.3},null,13,null,null,null,null,19,null,60.3,60.2,1.6,168.9,101.5,70.3,85,127,179,{"$f":"IF(VLOOKUP(A29,A29:AA29,10+Tabulky!$C$4)=\"\",\"\",J29*Titulní!$B$26+VLOOKUP(A29,A29:AA29,10+Tabulky!$C$4)*Titulní!$B$25)","v":2807.5}]
[29,null,"ALEŠ ZEMAN-úklidové práce","Kladno","Poděbradova 3213","272 01",608147779,"uklid.zeman@volny.cz","www.uklidove-firmy-az.estranky.cz",{"$f":"VLOOKUP(A30,A30:AA30,18+Tabulky!$C$3)","v":32},null,16,null,null,null,null,null,null,32,85.3,85.9,151,179,128,1.1000000000000001,106,155,{"$f":"IF(VLOOKUP(A30,A30:AA30,10+Tabulky!$C$4)=\"\",\"\",J30*Titulní!$B$26+VLOOKUP(A30,A30:AA30,10+Tabulky!$C$4)*Titulní!$B$25)","v":2400}]
[30,null,"Housekeeping s.r.o.","Praha","Naskové 3","150 00"," 605 885 842","info@house-keeping.cz","www.house-keeping.cz",{"$f":"VLOOKUP(A31,A31:AA31,18+Tabulky!$C$3)","v":5},40,10,null,null,null,null,null,10,5,88.6,62.6,121,157,98.9,31,75.400000000000006,125,{"$f":"IF(VLOOKUP(A31,A31:AA31,10+Tabulky!$C$4)=\"\",\"\",J31*Titulní!$B$26+VLOOKUP(A31,A31:AA31,10+Tabulky!$C$4)*Titulní!$B$25)","v":1125}]
[31,null,"Výtahy Kladno v.o.s","Kladno","Kročehlavská 1308","272 01",603718172,"vytahy@vytahykladno.cz","www.vytahykladno.cz ",{"$f":"VLOOKUP(A32,A32:AA32,18+Tabulky!$C$3)","v":28.5},null,null,null,350,null,null,null,null,28.5,91.4,83.2,149,176,125,2.2000000000000002,1.3,152,{"$f":"IF(VLOOKUP(A32,A32:AA32,10+Tabulky!$C$4)=\"\",\"\",J32*Titulní!$B$26+VLOOKUP(A32,A32:AA32,10+Tabulky!$C$4)*Titulní!$B$25)","v":""}]
[32,null,"HG-SECURITY spol. s r.o.","Praha","Chudenická 30/1059","102 00",733121587,"hg-security@centrum.cz","http://www.hg-security.cz/",{"$f":"VLOOKUP(A33,A33:AA33,18+Tabulky!$C$3)","v":14.2},null,null,null,null,null,90,null,null,14.2,103,64.400000000000006,107,144,85.3,46.6,61.5,111,{"$f":"IF(VLOOKUP(A33,A33:AA33,10+Tabulky!$C$4)=\"\",\"\",J33*Titulní!$B$26+VLOOKUP(A33,A33:AA33,10+Tabulky!$C$4)*Titulní!$B$25)","v":""}]
[33,null,"F.D.A. SECURITY","Boskovice","Ludvíka Vojtěcha 80","680 01",516453965,"office@fda-security.cz","http://www.fda-security.cz/",{"$f":"VLOOKUP(A34,A34:AA34,18+Tabulky!$C$3)","v":225},null,null,null,null,null,75,null,null,225,336,292,210,253,204,282,208,113,{"$f":"IF(VLOOKUP(A34,A34:AA34,10+Tabulky!$C$4)=\"\",\"\",J34*Titulní!$B$26+VLOOKUP(A34,A34:AA34,10+Tabulky!$C$4)*Titulní!$B$25)","v":""}]
[34,null," OMEGA SECURITY s.r.o.","Plzeň","Slovanská tř. 80,","326 00",377456668,"omegasecurity@seznam.cz","http://www.omegasecurity.cz/",{"$f":"VLOOKUP(A35,A35:AA35,18+Tabulky!$C$3)","v":99},null,null,null,null,null,75,null,null,99,3.1,59.6,206,132,113,105,160,210,{"$f":"IF(VLOOKUP(A35,A35:AA35,10+Tabulky!$C$4)=\"\",\"\",J35*Titulní!$B$26+VLOOKUP(A35,A35:AA35,10+Tabulky!$C$4)*Titulní!$B$25)","v":""}]
[35,null,"IBEX Security s.r.o.","Šilheřovice","Květinová 397 "," 747 15","724 200 958 "," info@ibex-sbs.cz","http://www.ibex-sbs.cz/",{"$f":"VLOOKUP(A36,A36:AA36,18+Tabulky!$C$3)","v":390},null,null,null,null,null,85,null,null,390,476,445,349,394,344,422,347,252,{"$f":"IF(VLOOKUP(A36,A36:AA36,10+Tabulky!$C$4)=\"\",\"\",J36*Titulní!$B$26+VLOOKUP(A36,A36:AA36,10+Tabulky!$C$4)*Titulní!$B$25)","v":""}]
[36,null,"Security service","Praha","Dopravní 500",14000,606728321,"michal.krejcik@email.cz","www.security.wbs.cz",{"$f":"VLOOKUP(A37,A37:AA37,18+Tabulky!$C$3)","v":20.5},null,null,null,null,null,105,null,null,20.5,117,74,104,141,82.3,61.3,58.6,108,{"$f":"IF(VLOOKUP(A37,A37:AA37,10+Tabulky!$C$4)=\"\",\"\",J37*Titulní!$B$26+VLOOKUP(A37,A37:AA37,10+Tabulky!$C$4)*Titulní!$B$25)","v":""}]
[37,null,"SvoboDo","Plzeň","Vochov 58","330 23"," 602 414 085","Zdenek.SvobodaSvobodo@seznam.cz","http://www.uklidovesluzbyplzen.cz",{"$f":"VLOOKUP(A38,A38:AA38,18+Tabulky!$C$3)","v":110},30,14,null,null,null,null,6,null,110,9.5,76.5,226,149,131,125,180,229,{"$f":"IF(VLOOKUP(A38,A38:AA38,10+Tabulky!$C$4)=\"\",\"\",J38*Titulní!$B$26+VLOOKUP(A38,A38:AA38,10+Tabulky!$C$4)*Titulní!$B$25)","v":4150}]
[38,null,"Uklid-udrzba-plzen","Plzeň",null,null,774571813,"b.bartak@seznam.cz","http://uklid-udrzba-plzen.webnode.cz/",{"$f":"VLOOKUP(A39,A39:AA39,18+Tabulky!$C$3)","v":105},40,5.5,null,null,null,null,12,null,105,1.2,78,224.6,153,134,122,183.5,228.5,{"$f":"IF(VLOOKUP(A39,A39:AA39,10+Tabulky!$C$4)=\"\",\"\",J39*Titulní!$B$26+VLOOKUP(A39,A39:AA39,10+Tabulky!$C$4)*Titulní!$B$25)","v":3175}]
[39,null,"TDT servis výtahů","Praha","Šimáčkova 8","170 00",775619908,"tdt-vytahy@seznam.cz","http://www.tdt.wz.cz/",{"$f":"VLOOKUP(A40,A40:AA40,18+Tabulky!$C$3)","v":6.1},null,null,null,360,null,null,null,null,6.1,94.2,65.5,107,153,94.4,27.9,61,115,{"$f":"IF(VLOOKUP(A40,A40:AA40,10+Tabulky!$C$4)=\"\",\"\",J40*Titulní!$B$26+VLOOKUP(A40,A40:AA40,10+Tabulky!$C$4)*Titulní!$B$25)","v":""}]
[40,null,"Bezpo","Plzeň","Hřímalého 805/3","301 00",602104471,"bezpoplzen@seznam.cz","http://www.bezpo.com/",{"$f":"VLOOKUP(A41,A41:AA41,18+Tabulky!$C$3)","v":91},null,null,40,null,null,null,null,null,91,0.9,65.8,205,138,120,104,159,209,{"$f":"IF(VLOOKUP(A41,A41:AA41,10+Tabulky!$C$4)=\"\",\"\",J41*Titulní!$B$26+VLOOKUP(A41,A41:AA41,10+Tabulky!$C$4)*Titulní!$B$25)","v":""}]
[41,null,"Jaroslav Vidim","Velvary","Malovarská 387","273 24",733139577,"info@hasici-pristroje.net","http://www.hasici-pristroje.net/",{"$f":"VLOOKUP(A42,A42:AA42,18+Tabulky!$C$3)","v":45},null,null,49,null,null,null,null,null,45,104,81.599999999999994,100,174,116,20.3,60.7,142,{"$f":"IF(VLOOKUP(A42,A42:AA42,10+Tabulky!$C$4)=\"\",\"\",J42*Titulní!$B$26+VLOOKUP(A42,A42:AA42,10+Tabulky!$C$4)*Titulní!$B$25)","v":""}]
[42,null,"Karel Hrbek","Praha","Černošice","252 28",777312705,"technikpo@technikpo.cz","http://www.technikpo.cz/",{"$f":"VLOOKUP(A43,A43:AA43,18+Tabulky!$C$3)","v":16.5},null,null,40,null,null,null,null,null,16.5,83.8,51.1,126,144,99.4,39,80.599999999999994,130,{"$f":"IF(VLOOKUP(A43,A43:AA43,10+Tabulky!$C$4)=\"\",\"\",J43*Titulní!$B$26+VLOOKUP(A43,A43:AA43,10+Tabulky!$C$4)*Titulní!$B$25)","v":""}]
[43,null,"SLÁDEČEK PAVEL","Opatovice nad Labem","Jozífova 377","533 45",603972288," hasici-pristroje-sladecek@seznam.cz","http://www.hasici-pristroje-sladecek.stranky1.cz/",{"$f":"VLOOKUP(A44,A44:AA44,18+Tabulky!$C$3)","v":114},null,null,40,null,null,null,null,null,114,203,165,140,248,189,148,94.7,9.3000000000000007,{"$f":"IF(VLOOKUP(A44,A44:AA44,10+Tabulky!$C$4)=\"\",\"\",J44*Titulní!$B$26+VLOOKUP(A44,A44:AA44,10+Tabulky!$C$4)*Titulní!$B$25)","v":""}]
[44,null,"AGROS","Praha"," Bojasova 1245",18200,606950976,"argos.zvara@seznam.cz","http://www.argos-pozarniservis.cz/",{"$f":"VLOOKUP(A45,A45:AA45,18+Tabulky!$C$3)","v":13.7},null,null,60,null,null,null,null,null,13.7,100,71.5,104,160,102,33.5,58.9,112,{"$f":"IF(VLOOKUP(A45,A45:AA45,10+Tabulky!$C$4)=\"\",\"\",J45*Titulní!$B$26+VLOOKUP(A45,A45:AA45,10+Tabulky!$C$4)*Titulní!$B$25)","v":""}]
[45,null," AHAS-PROFI","Hluboká nad Vltavou","Zvolenovská 536","371 43",775413089,"ahas-profi@seznam.cz","http://www.ahas-profi.cz/",{"$f":"VLOOKUP(A46,A46:AA46,18+Tabulky!$C$3)","v":146},null,null,45,null,null,null,null,null,146,130,95,249,9.5,59.9,174,204,253,{"$f":"IF(VLOOKUP(A46,A46:AA46,10+Tabulky!$C$4)=\"\",\"\",J46*Titulní!$B$26+VLOOKUP(A46,A46:AA46,10+Tabulky!$C$4)*Titulní!$B$25)","v":""}]
[46,null,"Požární revize","Praha","Kurzova 2391/9","155 00",776638919,"matyaskalenda@pozarni-prevence.eu","http://www.pozarni-revize.eu/",{"$f":"VLOOKUP(A47,A47:AA47,18+Tabulky!$C$3)","v":8.1},null,null,40,null,null,null,null,null,8.1,85.4,64.7,123,158,107,31,77.5,127,{"$f":"IF(VLOOKUP(A47,A47:AA47,10+Tabulky!$C$4)=\"\",\"\",J47*Titulní!$B$26+VLOOKUP(A47,A47:AA47,10+Tabulky!$C$4)*Titulní!$B$25)","v":""}]
[47,null,"Hlavní báňská záchranná stanice Praha a.s.","Praha","Za opravnou 276/8","151 23"," 257 282 701","hbzs@hbzs-praha.cz","http://www.hbzs-praha.cz/",{"$f":"VLOOKUP(A48,A48:AA48,18+Tabulky!$C$3)","v":6},null,null,30,null,null,null,null,null,6,83.9,67,122,155,109,26.2,76.2,126,{"$f":"IF(VLOOKUP(A48,A48:AA48,10+Tabulky!$C$4)=\"\",\"\",J48*Titulní!$B$26+VLOOKUP(A48,A48:AA48,10+Tabulky!$C$4)*Titulní!$B$25)","v":""}]
[48,null," I.C.C.LIFT s.r.o.","Stříbro","5.května 616",34901,722194974," info.icclift@gmail.com","www.icclift.com",{"$f":"VLOOKUP(A49,A49:AA49,18+Tabulky!$C$3)","v":128},null,null,null,350,null,null,null,null,128,36,93,243,166,148,142,197,247,{"$f":"IF(VLOOKUP(A49,A49:AA49,10+Tabulky!$C$4)=\"\",\"\",J49*Titulní!$B$26+VLOOKUP(A49,A49:AA49,10+Tabulky!$C$4)*Titulní!$B$25)","v":""}]
[49,null,"ÚKLID-PLZEŇ.EU","Mýto","Těškovská 625","338 05",608531117,"info@uklid-plzen.eu","http://www.uklid-plzen.eu/",{"$f":"VLOOKUP(A50,A50:AA50,18+Tabulky!$C$3)","v":92},null,15,null,350,null,null,4,null,92,29,45.8,178,132,155,74.900000000000006,132,182,{"$f":"IF(VLOOKUP(A50,A50:AA50,10+Tabulky!$C$4)=\"\",\"\",J50*Titulní!$B$26+VLOOKUP(A50,A50:AA50,10+Tabulky!$C$4)*Titulní!$B$25)","v":3800}]
[50,null,"Úklidové služby Plzeň","Plzeň","K Doubí 26 ","312 00","608 53 75 66","www.uklidovesluzby-plzen.cz","http://www.uklidovesluzby-plzen.cz/",{"$f":"VLOOKUP(A51,A51:AA51,18+Tabulky!$C$3)","v":85},30,14,null,null,null,null,4,null,85,9,67.900000000000006,200,134,111,98.8,154,204,{"$f":"IF(VLOOKUP(A51,A51:AA51,10+Tabulky!$C$4)=\"\",\"\",J51*Titulní!$B$26+VLOOKUP(A51,A51:AA51,10+Tabulky!$C$4)*Titulní!$B$25)","v":3525}]
[51,null,"ÚKLID PRESTO, s.r.o.","Plzeň","Šikmá 214/8","318 00",377385798,"info@uklidpresto.cz","http://www.uklidpresto.cz/",{"$f":"VLOOKUP(A52,A52:AA52,18+Tabulky!$C$3)","v":105},28,16,null,null,null,null,11,null,105,6,70.400000000000006,220,143,125,118,174,223,{"$f":"IF(VLOOKUP(A52,A52:AA52,10+Tabulky!$C$4)=\"\",\"\",J52*Titulní!$B$26+VLOOKUP(A52,A52:AA52,10+Tabulky!$C$4)*Titulní!$B$25)","v":4225}]
[52,null,"KLIMATECH Praha spol. s r.o.","Praha","Škroupovo náměstí 10","130 00","222 725 204","klimatech@klimatech.cz","http://www.klimatech.cz/",{"$f":"VLOOKUP(A53,A53:AA53,18+Tabulky!$C$3)","v":5.0999999999999996},null,null,null,null,360,null,null,null,5.0999999999999996,93.6,62.8,108,150,91.2,31.1,62.7,112,{"$f":"IF(VLOOKUP(A53,A53:AA53,10+Tabulky!$C$4)=\"\",\"\",J53*Titulní!$B$26+VLOOKUP(A53,A53:AA53,10+Tabulky!$C$4)*Titulní!$B$25)","v":""}]
[53,null,"Výtahy Holý, s.r.o.","Praha","K Louži-2","101 00"," 732 782 588","info@vytahyholy.cz","www.vytahyholy.cz",{"$f":"VLOOKUP(A54,A54:AA54,18+Tabulky!$C$3)","v":5.5},null,null,null,380,null,null,null,null,5.5,94.5,63.8,109,151.5,93,32,61.5,112,{"$f":"IF(VLOOKUP(A54,A54:AA54,10+Tabulky!$C$4)=\"\",\"\",J54*Titulní!$B$26+VLOOKUP(A54,A54:AA54,10+Tabulky!$C$4)*Titulní!$B$25)","v":""}]
[54,null,"BŘÍZA Výtahy s.r.o.","Praha","Českobrodská 72","190 12","777 251 659 ","info@briza-vytahy.cz","http://www.briza-vytahy.cz/",{"$f":"VLOOKUP(A55,A55:AA55,18+Tabulky!$C$3)","v":19.600000000000001},null,null,null,365,null,null,null,null,19.600000000000001,109,71,98,154,95.3,54.2,52.8,102,{"$f":"IF(VLOOKUP(A55,A55:AA55,10+Tabulky!$C$4)=\"\",\"\",J55*Titulní!$B$26+VLOOKUP(A55,A55:AA55,10+Tabulky!$C$4)*Titulní!$B$25)","v":""}]
[55,null,"NERA-lift, s.r.o.","Praha","U Továren 770/1b","102 00",602699401,"info@nera-lift.cz ","www.nera-lift.cz",{"$f":"VLOOKUP(A56,A56:AA56,18+Tabulky!$C$3)","v":17.100000000000001},null,null,null,380,null,null,null,null,17.100000000000001,106,68.5,103,147,88.5,51.8,57.6,110,{"$f":"IF(VLOOKUP(A56,A56:AA56,10+Tabulky!$C$4)=\"\",\"\",J56*Titulní!$B$26+VLOOKUP(A56,A56:AA56,10+Tabulky!$C$4)*Titulní!$B$25)","v":""}]
[56,null,"Bestlift, spol. s r.o.","Praha","Pražská 15, ","251 64",724971453,"ivanka@bestlift.cz","http://www.bestlift.cz/",{"$f":"VLOOKUP(A57,A57:AA57,18+Tabulky!$C$3)","v":15.1},null,null,null,355,null,null,null,null,15.1,104,66.2,104,145,86.5,49.7,58.6,108,{"$f":"IF(VLOOKUP(A57,A57:AA57,10+Tabulky!$C$4)=\"\",\"\",J57*Titulní!$B$26+VLOOKUP(A57,A57:AA57,10+Tabulky!$C$4)*Titulní!$B$25)","v":""}]
[57,null,"Evyt s.r.o.","Praha","Klouzková 74","104 00","724 753 434","evyt@evyt.cz","http://www.evyt.cz/",{"$f":"VLOOKUP(A58,A58:AA58,18+Tabulky!$C$3)","v":20.2},null,null,null,360,null,null,null,null,20.2,116,71.8,107,139,80.2,61.2,61.4,111,{"$f":"IF(VLOOKUP(A58,A58:AA58,10+Tabulky!$C$4)=\"\",\"\",J58*Titulní!$B$26+VLOOKUP(A58,A58:AA58,10+Tabulky!$C$4)*Titulní!$B$25)","v":""}]
[58,null,"Elex s.r.o","Plzeň","U Hřbitova 24",31830,377389893,"servis@vytahyelex.cz","http://www.vytahyelex.cz/",{"$f":"VLOOKUP(A59,A59:AA59,18+Tabulky!$C$3)","v":105},null,null,null,360,null,null,null,null,105,4.7,71.3,220,144,125,119,175,224,{"$f":"IF(VLOOKUP(A59,A59:AA59,10+Tabulky!$C$4)=\"\",\"\",J59*Titulní!$B$26+VLOOKUP(A59,A59:AA59,10+Tabulky!$C$4)*Titulní!$B$25)","v":""}]
[59,null,"VÝTAHY VOTO","Plzeň","Jateční 10","301 00",377183581,"voto@vytahy-voto.cz","http://www.vytahy-voto.cz/",{"$f":"VLOOKUP(A60,A60:AA60,18+Tabulky!$C$3)","v":87},null,null,null,370,null,null,null,null,87,3.7,69,202,134,116,101,157,206,{"$f":"IF(VLOOKUP(A60,A60:AA60,10+Tabulky!$C$4)=\"\",\"\",J60*Titulní!$B$26+VLOOKUP(A60,A60:AA60,10+Tabulky!$C$4)*Titulní!$B$25)","v":""}]
[60,null,"EXPRESS ELEVATORS S.R.O.","Praha","Chodovická 2279","193 00",603546098,"info@e-elevators.cz","http://www.e-elevators.cz/",{"$f":"VLOOKUP(A61,A61:AA61,18+Tabulky!$C$3)","v":26},null,null,null,350,null,null,null,null,26,116,78.099999999999994,92,152,94,61.1,46.3,103,{"$f":"IF(VLOOKUP(A61,A61:AA61,10+Tabulky!$C$4)=\"\",\"\",J61*Titulní!$B$26+VLOOKUP(A61,A61:AA61,10+Tabulky!$C$4)*Titulní!$B$25)","v":""}]
[61,null,"EURO VÝTAHY s.r.o.","Praha","Ke Stírce 1845/39","182 00",737211301,"info@eurovytahy.cz","http://www.eurovytahy.cz/",{"$f":"VLOOKUP(A62,A62:AA62,18+Tabulky!$C$3)","v":13},null,null,null,360,null,null,null,null,13,98.2,69.400000000000006,105,157,98,31,58,113,{"$f":"IF(VLOOKUP(A62,A62:AA62,10+Tabulky!$C$4)=\"\",\"\",J62*Titulní!$B$26+VLOOKUP(A62,A62:AA62,10+Tabulky!$C$4)*Titulní!$B$25)","v":""}]
[62,null,"KM VÝTAHY","České Budějovice","K.Weise 1046","370 04",777588801,"info@kmvytahy.cz","http://www.kmvytahy.cz/",{"$f":"VLOOKUP(A63,A63:AA63,18+Tabulky!$C$3)","v":151},null,null,null,380,null,null,null,null,151,135,101,248,1.1000000000000001,58.9,184,203,252,{"$f":"IF(VLOOKUP(A63,A63:AA63,10+Tabulky!$C$4)=\"\",\"\",J63*Titulní!$B$26+VLOOKUP(A63,A63:AA63,10+Tabulky!$C$4)*Titulní!$B$25)","v":""}]
[63,null,"Výtahy Line s.r.o.","České Budějovice","Balhoslavova 14","370 04",387428025,"vytahy.line@volny.cz","http://vytahy-line.cz/kontakt/",{"$f":"VLOOKUP(A64,A64:AA64,18+Tabulky!$C$3)","v":145},null,null,null,380,null,null,null,null,145,136,105,246,1.3,56,182,202,253,{"$f":"IF(VLOOKUP(A64,A64:AA64,10+Tabulky!$C$4)=\"\",\"\",J64*Titulní!$B$26+VLOOKUP(A64,A64:AA64,10+Tabulky!$C$4)*Titulní!$B$25)","v":""}]
[64,null,"KLIMAX","Praha","Úvalská 794/23","100 00",602330430,"pavel.klimax@tiscali.cz","www.klimax-vzduchotechnika.cz",{"$f":"VLOOKUP(A65,A65:AA65,18+Tabulky!$C$3)","v":14.6},null,null,null,null,350,null,null,null,14.6,104,66.099999999999994,105,149,90,49,59.1,109,{"$f":"IF(VLOOKUP(A65,A65:AA65,10+Tabulky!$C$4)=\"\",\"\",J65*Titulní!$B$26+VLOOKUP(A65,A65:AA65,10+Tabulky!$C$4)*Titulní!$B$25)","v":""}]
[65,null,"VSK Praha s.r.o.","Praha","Livornská 429","109 00",274860591,"info@vkspraha.cz","vkspraha.cz ",{"$f":"VLOOKUP(A66,A66:AA66,18+Tabulky!$C$3)","v":18.7},null,null,null,null,360,null,null,null,18.7,108,67.3,106,143,84.3,53.3,60.4,110,{"$f":"IF(VLOOKUP(A66,A66:AA66,10+Tabulky!$C$4)=\"\",\"\",J66*Titulní!$B$26+VLOOKUP(A66,A66:AA66,10+Tabulky!$C$4)*Titulní!$B$25)","v":""}]
[66,null,"AB Clima s.r.o.","Praha","Högerova 1219/3",15200,800104700," j.trasak@abclima.cz ","http://www.abclima.cz/",{"$f":"VLOOKUP(A67,A67:AA67,18+Tabulky!$C$3)","v":6.4},null,null,null,null,370,null,null,null,6.4,90,58.5,116,152,93.8,35.700000000000003,70.3,120,{"$f":"IF(VLOOKUP(A67,A67:AA67,10+Tabulky!$C$4)=\"\",\"\",J67*Titulní!$B$26+VLOOKUP(A67,A67:AA67,10+Tabulky!$C$4)*Titulní!$B$25)","v":""}]
[67,null,"Airclima service","Praha","U Kostrounku 1279","156 00","776 630 403.",null,"http://www.chlazeni-vzduchotechnika.cz/",{"$f":"VLOOKUP(A68,A68:AA68,18+Tabulky!$C$3)","v":13.2},null,null,null,null,365,null,null,null,13.2,95.7,48.5,123,142,93,41.4,77,126,{"$f":"IF(VLOOKUP(A68,A68:AA68,10+Tabulky!$C$4)=\"\",\"\",J68*Titulní!$B$26+VLOOKUP(A68,A68:AA68,10+Tabulky!$C$4)*Titulní!$B$25)","v":""}]
[68,null,"JR KLIMA s.r.o.","Praha","Vrážská 144","153 00",257912066,"jr-klima@jr-klima.com","http://www.jr-klima.com/",{"$f":"VLOOKUP(A69,A69:AA69,18+Tabulky!$C$3)","v":12},null,null,null,null,370,null,null,null,12,92.6,52.4,121,146,94.4,38,75.7,125,{"$f":"IF(VLOOKUP(A69,A69:AA69,10+Tabulky!$C$4)=\"\",\"\",J69*Titulní!$B$26+VLOOKUP(A69,A69:AA69,10+Tabulky!$C$4)*Titulní!$B$25)","v":""}]
[69,null,"VZDUCHOTECHNIKA VEJVODA, s.r.o.","Praha","Holečkova 22","150 00",224816874,"vejvoda@vzduchotechnika-air.cz","http://www.vzduchotechnika-klimatizace.info/",{"$f":"VLOOKUP(A70,A70:AA70,18+Tabulky!$C$3)","v":2.6},null,null,null,null,370,null,null,null,2.6,88,60,119,153,96.2,30,72.8,122,{"$f":"IF(VLOOKUP(A70,A70:AA70,10+Tabulky!$C$4)=\"\",\"\",J70*Titulní!$B$26+VLOOKUP(A70,A70:AA70,10+Tabulky!$C$4)*Titulní!$B$25)","v":""}]
[70,null,"Schönbauer a spol. s.r.o.","Praha","Nad Libří 233/22","159 00",257940072,"schonbauer@schonbauer.cz","http://www.schonbauer.cz/",{"$f":"VLOOKUP(A71,A71:AA71,18+Tabulky!$C$3)","v":5.6},null,null,null,null,350,null,null,null,5.6,92,63,115,148,95,35,71,120,{"$f":"IF(VLOOKUP(A71,A71:AA71,10+Tabulky!$C$4)=\"\",\"\",J71*Titulní!$B$26+VLOOKUP(A71,A71:AA71,10+Tabulky!$C$4)*Titulní!$B$25)","v":""}]
[71,null,"Comfort sdružení, a.s.","Plzeň","Domažlická 1133","318 00",377382380,"comfort@comfort-as.cz","www.comfort-as.cz",{"$f":"VLOOKUP(A72,A72:AA72,18+Tabulky!$C$3)","v":125},null,null,null,null,355,null,null,null,125,4.5999999999999996,71.7,207,144,126,106,162,211,{"$f":"IF(VLOOKUP(A72,A72:AA72,10+Tabulky!$C$4)=\"\",\"\",J72*Titulní!$B$26+VLOOKUP(A72,A72:AA72,10+Tabulky!$C$4)*Titulní!$B$25)","v":""}]
[72,null,"Enerfin plus s.r.o.","Plzeň","Domažlická 116/223,","318 00",377457816,"enerfin@enerfin.cz","http://www.enerfinplus.cz/",{"$f":"VLOOKUP(A73,A73:AA73,18+Tabulky!$C$3)","v":92},null,null,null,null,360,null,null,null,92,4.5,71.3,208,144.5,126.3,105.2,161.6,211,{"$f":"IF(VLOOKUP(A73,A73:AA73,10+Tabulky!$C$4)=\"\",\"\",J73*Titulní!$B$26+VLOOKUP(A73,A73:AA73,10+Tabulky!$C$4)*Titulní!$B$25)","v":""}]
[73,null,"ENERGOSTAR Tábor s.r.o.","Tábor","Sedláčkova 1856",39002,602661810,"info@energostar.cz","http://www.energostar.cz ",{"$f":"VLOOKUP(A74,A74:AA74,18+Tabulky!$C$3)","v":93},null,null,null,null,340,null,null,null,93,116,71.900000000000006,190,59.4,1,127,145,194,{"$f":"IF(VLOOKUP(A74,A74:AA74,10+Tabulky!$C$4)=\"\",\"\",J74*Titulní!$B$26+VLOOKUP(A74,A74:AA74,10+Tabulky!$C$4)*Titulní!$B$25)","v":""}]
[74,null,"BOKAS s.r.o.","České Budějovice","Zavadilka 2572","370 05",387311222,"bokas@volny.cz","http://www.bokas.cz/",{"$f":"VLOOKUP(A75,A75:AA75,18+Tabulky!$C$3)","v":143},null,15,null,null,null,null,null,null,143,133,98.5,253,5.2,63.3,177,207,256,{"$f":"IF(VLOOKUP(A75,A75:AA75,10+Tabulky!$C$4)=\"\",\"\",J75*Titulní!$B$26+VLOOKUP(A75,A75:AA75,10+Tabulky!$C$4)*Titulní!$B$25)","v":5075}]
[75,null,"Bittner","České Budějovice",null,null,776770825,"bittner.jakub9@gmail.com","http://www.profi-uklid-cisteni.cz/",{"$f":"VLOOKUP(A76,A76:AA76,18+Tabulky!$C$3)","v":135},null,27,null,null,null,null,null,null,135,131,96.3,251,3,62,175,205,258,{"$f":"IF(VLOOKUP(A76,A76:AA76,10+Tabulky!$C$4)=\"\",\"\",J76*Titulní!$B$26+VLOOKUP(A76,A76:AA76,10+Tabulky!$C$4)*Titulní!$B$25)","v":6075}]
[76,null,"CLEAN","České Budějovice","Bedřicha Smetany 1409/69","370 01",387319328,"info@clean2.cz","www.clean2.Cz",{"$f":"VLOOKUP(A77,A77:AA77,18+Tabulky!$C$3)","v":152},null,25,null,null,null,null,15,null,152,136,101,249,0.6,59.5,185,203,252,{"$f":"IF(VLOOKUP(A77,A77:AA77,10+Tabulky!$C$4)=\"\",\"\",J77*Titulní!$B$26+VLOOKUP(A77,A77:AA77,10+Tabulky!$C$4)*Titulní!$B$25)","v":6300}]
[77,null,"AB Prokir spol. s r.o.","Praha","Magistrů 921/9",14000,602332948,"prokir@prokir.cz","http://www.prokir.cz/",{"$f":"VLOOKUP(A78,A78:AA78,18+Tabulky!$C$3)","v":5.5},null,9.5,null,null,null,null,8,null,5.5,100,62.7,109,147,88.5,45.7,63.4,113,{"$f":"IF(VLOOKUP(A78,A78:AA78,10+Tabulky!$C$4)=\"\",\"\",J78*Titulní!$B$26+VLOOKUP(A78,A78:AA78,10+Tabulky!$C$4)*Titulní!$B$25)","v":1087.5}]
[78,null,"ČÍMA odpady s.r.o.","Liberec","Londýnská 10/99","46001 ",482710089,"info@cimaliberec.cz","http://www.cimaliberec.cz/",{"$f":"VLOOKUP(A79,A79:AA79,18+Tabulky!$C$3)","v":112},null,null,null,null,null,null,null,6,112,207,171,1.2,251,193,153,52.8,101]
[79,null,"UKLIDY. Com","Spálené Poříčí ","Republikánská 176 ","335 61"," 773 603 205 ","info@uklidy.com ","http://www.uklidy.com/",{"$f":"VLOOKUP(A80,A80:AA80,18+Tabulky!$C$3)","v":96},null,null,null,null,null,null,null,8,96,24,35,209,109,91,87,160,213]
[80,null,"Andílci s.r.o.","Hradec Králové","Eliščino nábřeží 375","500 03",724003122," andilcisro@seznam.cz ","http://www.uklid-hk.cz/",{"$f":"VLOOKUP(A81,A81:AA81,18+Tabulky!$C$3)","v":115},null,12.5,null,null,null,null,5,null,115,211,174,97,256,198,157,82,1.3]
[81,null,"WARRIOR SECURITY, s.r.o.","Pardubice","Bezděkov 38",53501,608231299,"info@warriorsecurity.cz","info@warriorsecurity.cz",{"$f":"VLOOKUP(A82,A82:AA82,18+Tabulky!$C$3)","v":106},null,null,null,null,null,120,null,null,106,197,161,137,177,122,143,88,39]
[82,null,"OMEGA SECURITY s.r.o.","Plzeň","Slovanská tř. 80","326 00",377456668,"megasecurity@seznam.cz","www.omegasecurity.cz",{"$f":"VLOOKUP(A83,A83:AA83,18+Tabulky!$C$3)","v":95},null,null,null,null,null,null,null,null,95,5,73,206,140,128,103,155,208]
[83,null,"ZEKA plus, s.r.o.","Slavičín","Jasmínová č.e. 0876","763 21",577343818,"zekaplus@zekaplus.cz","http://www.zekaplus.cz/",{"$f":"VLOOKUP(A84,A84:AA84,18+Tabulky!$C$3)","v":329},null,null,45,null,null,null,null,null,329,430,377,420,350,365,395,258,238]
[84,null,"Richard Dvořák","České Budějovice","Žižkova tř. 309/12","370 01",777678066,"richflorida@seznam.cz","http://www.uklid-budejovice.cz/",{"$f":"VLOOKUP(A85,A85:AA85,18+Tabulky!$C$3)","v":152},null,23,null,null,null,null,13,null,152,136,101,249,0.6,59.5,185,203,252]
[85,null,"Bittner","České Budějovice",null,null,776770825,null,"http://www.profi-uklid-cisteni.cz/",{"$f":"VLOOKUP(A86,A86:AA86,18+Tabulky!$C$3)","v":145},null,27,null,null,null,null,null,null,145,136,105,243,4,56,176,196,248]
[86,null,"KATEŘINA BETLACHOVÁ","Plzeň","Bolevecká 12","301 00",724508088,"info@uklidy-plzen.cz","http://www.uklidy-plzen.cz/",{"$f":"VLOOKUP(A87,A87:AA87,18+Tabulky!$C$3)","v":98},null,24,null,null,null,null,16,null,98,6,72,208,142,120,106,151,203]
[87,null,null,null,null,null,null,null,null,{"$f":"VLOOKUP(A88,A88:AA88,18+Tabulky!$C$3)","v":0}]
[88,null,null,null,null,null,null,null,null,{"$f":"VLOOKUP(A89,A89:AA89,18+Tabulky!$C$3)","v":0}]
[89,null,null,null,null,null,null,null,null,{"$f":"VLOOKUP(A90,A90:AA90,18+Tabulky!$C$3)","v":0}]
[90,null,null,null,null,null,null,null,null,{"$f":"VLOOKUP(A91,A91:AA91,18+Tabulky!$C$3)","v":0}]
[91,null,null,null,null,null,null,null,null,{"$f":"VLOOKUP(A92,A92:AA92,18+Tabulky!$C$3)","v":0}]
[null,null,null,null,null,null,null,null,null,{"$f":"VLOOKUP(A93,A93:AA93,18+Tabulky!$C$3)","v":{"$error":"#N/A"}}]
[null,null,null,null,null,null,null,null,null,{"$f":"VLOOKUP(A94,A94:AA94,18+Tabulky!$C$3)","v":{"$error":"#N/A"}}]
[null,null,null,null,null,null,null,null,null,{"$f":"VLOOKUP(A95,A95:AA95,18+Tabulky!$C$3)","v":{"$error":"#N/A"}}]
[null,null,null,null,null,null,null,null,null,{"$f":"VLOOKUP(A96,A96:AA96,18+Tabulky!$C$3)","v":{"$error":"#N/A"}}]
[null,null,null,null,null,null,null,null,null,{"$f":"VLOOKUP(A97,A97:AA97,18+Tabulky!$C$3)","v":{"$error":"#N/A"}}]
[null,null,null,null,null,null,null,null,null,{"$f":"VLOOKUP(A98,A98:AA98,18+Tabulky!$C$3)","v":{"$error":"#N/A"}}]
[null,null,null,null,null,null,null,null,null,{"$f":"VLOOKUP(A99,A99:AA99,18+Tabulky!$C$3)","v":{"$error":"#N/A"}}]
[null,null,null,null,null,null,null,null,null,{"$f":"VLOOKUP(A100,A100:AA100,18+Tabulky!$C$3)","v":{"$error":"#N/A"}}]
[null,null,null,null,null,null,null,null,null,{"$f":"VLOOKUP(A101,A101:AA101,18+Tabulky!$C$3)","v":{"$error":"#N/A"}}]
[null,null,null,null,null,null,null,null,null,{"$f":"VLOOKUP(A102,A102:AA102,18+Tabulky!$C$3)","v":{"$error":"#N/A"}}]
[null,null,null,null,null,null,null,null,null,{"$f":"VLOOKUP(A103,A103:AA103,18+Tabulky!$C$3)","v":{"$error":"#N/A"}}]
[null,null,null,null,null,null,null,null,null,{"$f":"VLOOKUP(A104,A104:AA104,18+Tabulky!$C$3)","v":{"$error":"#N/A"}}]

{"sheet":"Tabulky","index":2,"n_rows":25,"n_cols":6,"rows_kept":25,"cut":false,"hidden":false,"merged":[]}
["Pomocné"]
[null,"Počet firem v databázi",{"$f":"MAX('Seznam firem'!$A$2:$A$10000)","v":91},null,"Nejnižší cena",{"$f":"MIN('Seznam firem'!$AB$2:$AB$10000)","v":757.5}]
[null,{"$f":"VLOOKUP(C3,Tabulky!A17:B29,2,1)","v":"Praha"},1,null,"Nejvyšší cena",{"$f":"MAX('Seznam firem'!$AB$2:$AB$10000)","v":6300}]
[null,{"$f":"VLOOKUP(C4,Tabulky!A7:C14,2,1)","v":"Mytí oken"},2]
[]
["TABULKA SLUŽEB"]
[1,"Mytí obkladů","Kč/m2","m2"]
[2,"Mytí oken","Kč/m2","m2"]
[3,"Revize hasících přístrojů","Kč/ks","ks"]
[4,"Revize výtahů","Kč/h","h"]
[5,"Revize vzduchotechniky","Kč/h","h"]
[6,"Security služby","Kč/h","h"]
[7,"Úklid podlah","Kč/m2","m2"]
[8,"Úklid sněhu","Kč/m2","m2"]
[]
["TABULKA MĚST"]
[1,"Praha"]
[2,"Plzeň"]
[3,"Příbram"]
[4,"Liberec"]
[5,"České Budějovice"]
[6,"Tábor"]
[7,"Kladno"]
[8,"Mladá Boleslav"]
[9,"Hradec Králové"]

{"sheet":"služby","index":3,"n_rows":107,"n_cols":5,"rows_kept":107,"cut":false,"hidden":false,"merged":[]}
["Činnost","ID","Vzdálenost","Cena","MJ"]
["Mytí oken",1,8,6,"Kč/m2"]
["Úklid podlah",1,8,2,"Kč/m2"]
["Mytí obkladů",1,8,40,"Kč/m2"]
["Mytí oken",2,8.5,8,"Kč/m2"]
["Úklid podlah",2,8.5,0.9,"Kč/m2"]
["Mytí obkladů",2,8.5,35,"Kč/m2"]
["Mytí oken",3,10.3,11,"Kč/m2"]
["Úklid podlah",3,10.3,1.7,"Kč/m2"]
["Mytí obkladů",3,10.3,30,"Kč/m2"]
["Mytí oken",4,19.5,13,"Kč/m2"]
["Úklid podlah",4,19.5,3,"Kč/m2"]
["Mytí oken",5,11.8,10,"Kč/m2"]
["Úklid podlah",5,11.8,0.8,"Kč/m2"]
["Mytí obkladů",5,11.8,32,"Kč/m2"]
["Mytí oken",6,3.2,12,"Kč/m2"]
["Úklid podlah",6,3.2,0.55000000000000004,"Kč/m2"]
["Mytí oken",7,13.7,10,"Kč/m2"]
["Úklid podlah",7,13.7,8,"Kč/m2"]
["Mytí oken",8,1,12,"Kč/m2"]
["Úklid podlah",8,1,7,"Kč/m2"]
["Úklid sněhu",8,1,5,"Kč/m2"]
["Mytí oken",9,3.7,8,"Kč/m2"]
["Úklid podlah",9,3.7,2.8,"Kč/m2"]
["Úklid sněhu",9,3.7,3,"Kč/m2"]
["Mytí obkladů",9,3.7,38,"Kč/m2"]
["Mytí oken",10,0.5,15,"Kč/m2"]
["Úklid podlah",10,0.5,4,"Kč/m2"]
["Mytí obkladů",10,0.5,70,"Kč/m2"]
["Mytí oken",11,10.7,8,"Kč/m2"]
["Mytí oken",12,5.7,15,"Kč/m2"]
["Mytí oken",13,5.5,9.5,"Kč/m2"]
["Úklid podlah",13,5.5,10,"Kč/m2"]
["Mytí oken",14,6.3,6,"Kč/m2"]
["Úklid podlah",14,6.3,2,"Kč/m2"]
["Mytí obkladů",14,6.3,40,"Kč/m2"]
["Úklid sněhu",15,21.3,13,"Kč/m2"]
["Úklid sněhu",16,10.4,7,"Kč/m2"]
["Úklid sněhu",17,13.4,8,"Kč/m2"]
["Úklid sněhu",18,11.5,2.4,"Kč/m2"]
["Úklid sněhu",19,26.8,5,"Kč/m2"]
["Security služby",20,2.1,85,"Kč/h"]
["Security služby",21,5.5,103,"Kč/h"]
["Security služby",22,6.9,150,"Kč/h"]
["Security služby",23,5.0999999999999996,125,"Kč/h"]
["Security služby",24,8.5,90,"Kč/h"]
["Security služby",25,6.6,180,"Kč/h"]
["Mytí oken",26,59,6,"Kč/m2"]
["Úklid podlah",26,59,10,"Kč/m2"]
["Mytí oken",27,61,12,"Kč/m2"]
["Mytí oken",28,60.3,13,"Kč/m2"]
["Úklid podlah",28,60.3,19,"Kč/m2"]
["Mytí oken",29,32,16,"Kč/m2"]
["Mytí oken",30,5,10,"Kč/m2"]
["Revize výtahů",31,28.5,350,"Kč/h"]
["Security služby",32,14.2,90,"Kč/h"]
["Security služby",33,225,75,"Kč/h"]
["Security služby",34,99,75,"Kč/h"]
["Security služby",35,390,85,"Kč/h"]
["Security služby",36,20.5,105,"Kč/h"]
["Mytí oken",37,110,14,"Kč/m2"]
["Úklid podlah",37,110,6,"Kč/m2"]
["Mytí obkladů",37,110,25,"Kč/m2"]
["Mytí oken",38,105,5.5,"Kč/m2"]
["Úklid podlah",38,105,12,"Kč/m2"]
["Mytí obkladů",38,105,40,"Kč/m2"]
["Revize výtahů",39,6.1,360,"Kč/h"]
["Revize hasících přístrojů",40,91,40,"Kč/ks"]
["Revize hasících přístrojů",41,45,49,"Kč/ks"]
["Revize hasících přístrojů",42,16.5,40,"Kč/ks"]
["Revize hasících přístrojů",43,114,40,"Kč/ks"]
["Revize hasících přístrojů",44,13.7,60,"Kč/ks"]
["Revize hasících přístrojů",45,146,45,"Kč/ks"]
["Revize hasících přístrojů",46,8.1,40,"Kč/ks"]
["Revize hasících přístrojů",47,6,30,"Kč/ks"]
["Revize výtahů",48,128,350,"Kč/h"]
["Mytí oken",49,63,15,"Kč/m2"]
["Úklid podlah",49,63,4,"Kč/m2"]
["Revize výtahů",49,92,350,"Kč/h"]
["Mytí oken",50,85,14,"Kč/m2"]
["Úklid podlah",50,85,4,"Kč/m2"]
["Úklid podlah",50,85,3,"Kč/m2"]
["Mytí oken",51,105,16,"Kč/m2"]
["Úklid podlah",51,105,11,"Kč/m2"]
["Mytí obkladů",52,105,28,"Kč/m2"]
["Revize vzduchotechniky",52,5.0999999999999996,360,"Kč/h"]
["Revize výtahů",53,5.5,380,"Kč/h"]
["Revize výtahů",54,19.600000000000001,365,"Kč/h"]
["Revize výtahů",55,17.100000000000001,380,"Kč/h"]
["Revize výtahů",56,15.1,355,"Kč/h"]
["Revize výtahů",57,20.2,360,"Kč/h"]
["Revize výtahů",58,105,360,"Kč/h"]
["Revize výtahů",59,87,370,"Kč/h"]
["Revize výtahů",60,26,350,"Kč/h"]
["Revize výtahů",61,13,360,"Kč/h"]
["Revize výtahů",62,151,380,"Kč/h"]
["Revize výtahů",63,145,380,"Kč/h"]
["Revize vzduchotechniky",64,14.6,350,"Kč/h"]
["Revize vzduchotechniky",65,18.7,360,"Kč/h"]
["Revize vzduchotechniky",66,6.4,370,"Kč/h"]
["Revize vzduchotechniky",67,13.2,365,"Kč/h"]
["Revize vzduchotechniky",68,12,370,"Kč/h"]
["Revize vzduchotechniky",69,2.6,370,"Kč/h"]
["Revize vzduchotechniky",70,5.6,350,"Kč/h"]
["Revize vzduchotechniky",71,125,355,"Kč/h"]
["Revize vzduchotechniky",72,92,360,"Kč/h"]
["Revize vzduchotechniky",73,93,340,"Kč/h"]

{"sheet":"Úklid podlah","index":4,"n_rows":17,"n_cols":10,"rows_kept":17,"cut":false,"hidden":false,"merged":[]}
[]
[]
[]
[null,"Název poskytovatele","Město","Ulice","PSČ","Telefon","E-mail","HTTP","Vzdálenost\nkm ","Cena služby\nza 1m2"]
["1.","COOL Facillity s.r.o.","Praha","Švábky 52","180 00",777790005,"info@completeservice.cz","www.completeservice.cz",8,2]
["2.","Úklidové služby","Praha","V Nových Vokovicích 149","160 00",602238073,"www.uklidovesluzby.cz","www.uklidovesluzby.cz",8.5,2.5]
["3.","EuroProfi Clean v.o.s","Praha","Cílkova 639/24","142 00",777595854,"epc@europroficlean.cz ","www.europroficlean.cz",10.3,1.7]
["4.","Ksena.s.r.o.","Praha","Dářská 275/14","198 00",777595854,"reditel.uklid@ksena.cz  ","www.uklidove-prace-ksena.cz",19.5,3]
["5.","D&D s.r.o.","Praha","Výletní 398/27","142 00",244470604,"info@ddservis.eu","www.dd-uklid-praha.cz",11.8,2.5]
["6.","DOLEŽAL-DUHA, s. r. o.","Praha","Podolská 241/23,","147 00"," 733 640 206","info@duha.eu","www.duha-uklid.cz",3.2,3]
["7.","David Plecitý","Praha","Dubnova 807","149 00",602332178,"dplecity@volny.cz","www.uklidplecity.cz",13.7,8]
["8.","A.W.I.S.","Praha","Na Plzeňce 1236/4","150 00",222531104,"info@uklidy-kancelari.cz","www.uklidy-kancelari.cz",1,7]
["9.","Herakles","Praha","Marie Cibulkové 14","140 00",222934038,"jirisvatek.herakles@seznam.cz","www.adherakles.cz",3.7,2.8]
["10.","VYČISTÍM CZ","Praha","Zborovská 4","150 00",606741841,"info@vycistim.cz","www.vycistim.cz",0.5,4]
["11.","Úklidová četa","Praha","Jičínská 37","130 00",608947845,"info@uklidovaceta.cz","www.uklidovaceta.cz",5.7,2.9]
["12.","AB Prokir spol. s r.o.","Praha","Magistrů 921/9","140 00",602332948,"prokir@prokir.cz","www.prokir.cz",5.5,10]
["13.","RPM Service CZ a.s.","Praha","Moskevská 63/659","101 16"," 272 099 600","obchod@rpmservice.cz","www.rpmservice.cz",6.3,2]

{"sheet":"Úklid sněhu","index":5,"n_rows":11,"n_cols":10,"rows_kept":11,"cut":false,"hidden":false,"merged":[]}
[]
[]
[]
[null,"Název poskytovatele","Město","Ulice","PSČ","Telefon","E-mail","HTTP","Vzdálenost\nkm ","Cena služby\nza 1m2"]
["1.","Detai cleaning","Praha","Tovarova 1211","198 00",777926300,"info@detai.cz","www.detai.cz",21.3,13]
["2.","Komplexní úklid","Praha"," Šatrova 662",14200,603444507,"info@komplexni-uklid.cz","www.komplexni-uklid.cz",10.4,7]
["3.","Dopareal","Praha","Poznaňská 435",18100,604946096,"dopareal@gmail.com","www.dopareal.cz",13.4,8]
["4.","Šticha a syn s.r.o.","Praha","Choceradská 3044","141 00"," 777 844 726","info@stichaasyn.cz","www.stichaasyn.cz",11.5,2.4]
["5.","Miroslav Mlezviva","Kladno","Smetanova 284","273 45","725 370 545 ","miloslav.mleziva@uklidmleziva.cz","www.uklidmleziva.cz",26.8,5]
["6.","A.W.I.S.","Praha","Na Plzeňce 1236/4","150 00",222531104,"info@uklidy-kancelari.cz","www.uklidy-kancelari.cz",1,5]
["7.","Herakles","Praha","Marie Cibulkové 14","140 00",222934038,"jirisvatek.herakles@seznam.cz","www.adherakles.cz",3.7,3]

{"sheet":"Mytí oken","index":6,"n_rows":18,"n_cols":10,"rows_kept":18,"cut":false,"hidden":false,"merged":[]}
[]
[]
[]
[null,"Název poskytovatele","Město","Ulice","PSČ","Telefon","E-mail","HTTP","Vzdálenost\nkm ","Cena služby\nza 1m2"]
["1.","COOL Facillity s.r.o.","Praha","Švábky 52","180 00",777790005,"info@completeservice.cz","www.completeservice.cz",8,6]
["2.","Úklidové služby","Praha","V Nových Vokovicích 149","160 00",602238073,"www.uklidovesluzby.cz","www.uklidovesluzby.cz",8.5,8]
["3.","EuroProfi Clean v.o.s","Praha","Cílkova 639/24","142 00",777595854,"epc@europroficlean.cz ","www.europroficlean.cz",10.3,11]
["4.","Ksena.s.r.o.","Praha","Dářská 275/14","198 00",777595854,"reditel.uklid@ksena.cz  ","www.uklidove-prace-ksena.cz",19.5,13]
["5.","D&D s.r.o.","Praha","Výletní 398/27","142 00",244470604,"info@ddservis.eu","www.dd-uklid-praha.cz",11.8,10]
["6.","DOLEŽAL-DUHA, s. r. o.","Praha","Podolská 241/23,","147 00"," 733 640 206","info@duha.eu","www.duha-uklid.cz",3.2,12]
["7.","David Plecitý","Praha","Dubnova 807","149 00",602332178,"dplecity@volny.cz","www.uklidplecity.cz",13.7,10]
["8.","A.W.I.S.","Praha","Na Plzeňce 1236/4","150 00",222531104,"info@uklidy-kancelari.cz","www.uklidy-kancelari.cz",1,12]
["9.","Herakles","Praha","Marie Cibulkové 14","140 00",222934038,"jirisvatek.herakles@seznam.cz","www.adherakles.cz",3.7,8]
["10.","VYČISTÍM CZ","Praha","Zborovská 4","150 00",606741841,"info@vycistim.cz","www.vycistim.cz",0.5,15]
["11.","Mytí oken s.r.o.","Praha","Na Harfě 7","198 00",603232515,"uklid@mytioken.cz","www.mytioken.cz",10.7,8]
["12.","Úklidová četa","Praha","Jičínská 37","130 00",608947845,"info@uklidovaceta.cz","www.uklidovaceta.cz",5.7,15]
["13.","AB Prokir spol. s r.o.","Praha","Magistrů 921/9","140 00",602332948,"prokir@prokir.cz","http://www.prokir.cz/",5.5,9.5]
["14.","RPM Service CZ a.s.","Praha","Moskevská 63/659","101 16"," 272 099 600","obchod@rpmservice.cz","www.rpmservice.cz",6.3,6]

{"sheet":"Mytí obkladů","index":7,"n_rows":11,"n_cols":10,"rows_kept":11,"cut":false,"hidden":false,"merged":[]}
[]
[]
[]
[null,"Název poskytovatele","Město","Ulice","PSČ","Telefon","E-mail","HTTP","Vzdálenost\nkm ","Cena služby\nza 1m2"]
["1.","COOL Facillity s.r.o.","Praha","Švábky 52","180 00",777790005,"info@completeservice.cz","www.completeservice.cz",8,40]
["2.","Úklidové služby","Praha","V Nových Vokovicích 149","160 00",602238073,"www.uklidovesluzby.cz","www.uklidovesluzby.cz",8.5,35]
["3.","EuroProfi Clean v.o.s","Praha","Cílkova 639/24","142 00",777595854,"epc@europroficlean.cz ","www.europroficlean.cz",10.3,30]
["4.","D&D s.r.o.","Praha","Výletní 398/27","142 00",244470604,"info@ddservis.eu","www.dd-uklid-praha.cz",19.5,32]
["5.","Herakles","Praha","Marie Cibulkové 14","140 00",222934038,"jirisvatek.herakles@seznam.cz","www.adherakles.cz",3.7,38]
["6.","VYČISTÍM CZ","Praha","Zborovská 4","150 00",606741841,"info@vycistim.cz","www.vycistim.cz",0.5,70]
["7.","RPM Service CZ a.s.","Praha","Moskevská 63/659","101 16"," 272 099 600","obchod@rpmservice.cz","www.rpmservice.cz",6.3,40]

{"sheet":"Security","index":8,"n_rows":12,"n_cols":10,"rows_kept":12,"cut":false,"hidden":false,"merged":[]}
[]
[]
[]
[null,"Název poskytovatele","Město","Ulice","PSČ","Telefon","E-mail","HTTP","Vzdálenost\nkm ","Cena služby\nza h"]
["1.","RP Security","Praha","Plavecká 8","128 00","774 676 665","info@rp-security.cz","www.rp-security.cz",2.1,85]
["2.","S a S security service, s.r.o.","Praha"," Ke Klimentce 15","150 00",257225555,"sas@sassecurity.cz","www.sassecurity.cz",5.5,103]
["3.","Security Cihlář","Praha","Polední 1029/29","147 00",774881892,"security-cihlar@email.cz","www.security-cihlar.cz",6.9,150]
["4.","RTH Security s.r.o.","Praha","Jaurisova 4","140 00",261213712,"obchod@rthgroup.cz","www.rthgroup.cz",5.0999999999999996,125]
["5.","CBS PROFESIONAL security agency, a.s.","Praha","Na Rovnosti 2245/3","130 00"," 242441476","info@cbs.cz","www.cbs.cz",8.5,90]
["6.","V.I.P. SECURITY SERVICES s.r.o.","Praha","Za Elektrárnou 419","170 00",266727468,"info@prague-security.cz","www.prague-security.cz",6.6,180]
["7.","HG-SECURITY spol. s r.o.","Praha","Chudenická 30/1059","102 00",733121587,"hg-security@centrum.cz","http://www.hg-security.cz/",14.2,90]
["8.","Security service","Praha","Dopravní 500",14000,606728321,"michal.krejcik@email.cz","www.security.wbs.cz",20.5,105]

{"sheet":"Hasicí přístroje","index":9,"n_rows":11,"n_cols":10,"rows_kept":11,"cut":false,"hidden":false,"merged":[]}
[]
[]
[null,"Název poskytovatele","Město","Ulice","PSČ","Telefon","E-mail","HTTP","Vzdálenost\nkm ","Cena služby\nza ks"]
["1.","Bezpo","Plzeň","Hřímalého 805/3","301 00",602104471,"bezpoplzen@seznam.cz","http://www.bezpo.com/",91,40]
["2.","Jaroslav Vidim","Velvary","Malovarská 387","273 24",733139577,"info@hasici-pristroje.net","http://www.hasici-pristroje.net/",45,49]
["3.","Karel Hrbek","Praha","Černošice","252 28",777312705,"technikpo@technikpo.cz","http://www.technikpo.cz/",16.5,40]
["4.","SLÁDEČEK PAVEL","Opatovice nad Labem","Jozífova 377","533 45",603972288," hasici-pristroje-sladecek@seznam.cz","http://www.hasici-pristroje-sladecek.stranky1.cz/",114,40]
["5.","AGROS","Praha"," Bojasova 1245",18200,606950976,"argos.zvara@seznam.cz","http://www.argos-pozarniservis.cz/",13.7,60]
["6."," AHAS-PROFI","Hluboká nad Vltavou","Zvolenovská 536","371 43",775413089,"ahas-profi@seznam.cz","http://www.ahas-profi.cz/",146,45]
["7.","Požární revize","Praha","Kurzova 2391/9","155 00",776638919,"matyaskalenda@pozarni-prevence.eu","http://www.pozarni-revize.eu/",8.1,40]
["8.","Hlavní báňská záchranná stanice Praha a.s.","Praha","Za opravnou 276/8","151 23"," 257 282 701","hbzs@hbzs-praha.cz","http://www.hbzs-praha.cz/",6,30]

{"sheet":"výtahy","index":10,"n_rows":29,"n_cols":15,"rows_kept":29,"cut":false,"hidden":false,"merged":[[25,13,25,14],[26,13,26,14],[27,12,27,14],[28,13,28,14],[18,12,18,14],[20,12,20,14],[19,13,19,14],[24,12,24,14]]}
[]
[]
[]
[]
[]
[]
[null,"Název poskytovatele","Město","Ulice","PSČ","Telefon","E-mail","HTTP","Vzdálenost\nkm ","Cena služby\nza h"]
["1.","Výtahy Kladno v.o.s","Kladno","Kročehlavská 1308","272 01",603718172,"vytahy@vytahykladno.cz","www.vytahykladno.cz ",28.5,350]
["2.","TDT servis výtahů","Praha","Šimáčkova 8","170 00",775619908,"tdt-vytahy@seznam.cz","http://www.tdt.wz.cz/",6.1,360]
["3.","Výtahy Holý, s.r.o.","Praha","K Louži-2","101 00"," 732 782 588","info@vytahyholy.cz","www.vytahyholy.cz",5.5,380]
["4.","BŘÍZA Výtahy s.r.o.","Praha","Českobrodská 72","190 12","777 251 659 ","info@briza-vytahy.cz","http://www.briza-vytahy.cz/",19.600000000000001,365]
["5.","NERA-lift, s.r.o.","Praha","U Továren 770/1b","102 00",602699401,"info@nera-lift.cz ","www.nera-lift.cz",17.100000000000001,380]
["6.","Bestlift, spol. s r.o.","Praha","Pražská 15, ","251 64",724971453,"ivanka@bestlift.cz","http://www.bestlift.cz/",15.1,355]
["7.","Evyt s.r.o.","Praha","Klouzková 74","104 00","724 753 434","evyt@evyt.cz","http://www.evyt.cz/",20.2,360]
["8.","EXPRESS ELEVATORS S.R.O.","Praha","Chodovická 2279","193 00",603546098,"info@e-elevators.cz","http://www.e-elevators.cz/",26,350]
["9.","EURO VÝTAHY s.r.o.","Praha","Ke Stírce 1845/39","182 00",737211301,"info@eurovytahy.cz","http://www.eurovytahy.cz/",13,360]
[]
[null,null,null,null,null,null,null,null,null,null,null,null,"Druh výtahu","Výtahy uvedené \ndo provozu po 31.12.1992","Výtahy uvedené \ndo provozu před 1.1.1993"]
[null,null,null,null,null,null,null,null,null,null,null,null,"Provozní prohlídky"]
[null,null,null,null,null,null,null,null,null,null,null,null,"Výtahy bez rozlišení","2x/týden"]
[null,null,null,null,null,null,null,null,null,null,null,null,"Lhůty provádění odborných prohlídek v [měsících]"]
[null,null,null,null,null,null,null,null,null,null,null,null,"Výtahy určené k dopravě osob nebo osob a nákladů v budovách\n s převžujícím volným přístupem večejnosti",3,2]
[null,null,null,null,null,null,null,null,null,null,null,null,"Výtahy určené k dopravě osob nebo osob a nákladů v budovách\n používaných spíše uživateli budovy",4,3]
[null,null,null,null,null,null,null,null,null,null,null,null,"Výtahy určené k dopravě nákladů a malé nákladní výtahy",6,6]
[null,null,null,null,null,null,null,null,null,null,null,null,"Lhůty provádění odborných zkoušek v [roky]"]
[null,null,null,null,null,null,null,null,null,null,null,null,"Výtahy určené k dopravě osob \nnebo osob a nákladů",3]
[null,null,null,null,null,null,null,null,null,null,null,null,"Výtahy určené k dopravě nákladů a malé nákladní výtahy",6]
[null,null,null,null,null,null,null,null,null,null,null,null,"Lhůty provádění inspekčních prohlídek v [roky]"]
[null,null,null,null,null,null,null,null,null,null,null,null,"Výtahy bez rozlišení",6]

{"sheet":"Klima","index":11,"n_rows":62,"n_cols":14,"rows_kept":62,"cut":false,"hidden":false,"merged":[[48,12,52,12],[53,12,60,12],[40,12,42,12],[43,12,47,12]]}
[]
[]
[]
[null,"Název poskytovatele","Město","Ulice","PSČ","Telefon","E-mail","HTTP","Vzdálenost\nkm ","Cena služby\nza h"]
["1.","KLIMAX","Praha","Úvalská 794/23","100 00",602330430,"pavel.klimax@tiscali.cz","www.klimax-vzduchotechnika.cz",14.6,350]
["2.","VSK Praha s.r.o.","Praha","Livornská 429","109 00",274860591,"info@vkspraha.cz","vkspraha.cz ",18.7,360]
["3.","AB Clima s.r.o.","Praha","Högerova 1219/3",15200,800104700," j.trasak@abclima.cz ","http://www.abclima.cz/",6.4,370]
["4.","Airclima service","Praha","U Kostrounku 1279","156 00","776 630 403.",null,"www.chlazeni-vzduchotechnika.cz",13.2,365]
["5.","JR KLIMA s.r.o.","Praha","Vrážská 144","153 00",257912066,"jr-klima@jr-klima.com","http://www.jr-klima.com/",12,370]
["6.","VZDUCHOTECHNIKA VEJVODA, s.r.o.","Praha","Holečkova 22","150 00",224816874,"vejvoda@vzduchotechnika-air.cz","www.vzduchotechnika-klimatizace.info",2.6,370]
["7.","Schönbauer a spol. s.r.o.","Praha","Nad Libří 233/22","159 00",257940072,"schonbauer@schonbauer.cz","http://www.schonbauer.cz/",5.6,350]
["8.","Comfort sdružení, a.s.","Plzeň","Domažlická 1133","318 00",377382380,"comfort@comfort-as.cz","www.comfort-as.cz",125,355]
["9.","Enerfin plus s.r.o.","Plzeň","Domažlická 116/223,","318 00",377457816,"enerfin@enerfin.cz","http://www.enerfinplus.cz/",92,360]
["10.","ENERGOSTAR Tábor s.r.o.","Tábor","Sedláčkova 1856",39002,602661810,"info@energostar.cz","http://www.energostar.cz ",93,340]
[]
[]
[]
[]
[]
[]
[]
[]
[]
[]
[]
[]
[]
[]
[]
[]
[]
[]
[]
[]
[]
[]
[]
[]
[]
[null,null,null,null,null,null,null,null,null,null,null,null,"Interval prohlídky nebo\n servisního úkonu","Popis úkonu"]
[null,null,null,null,null,null,null,null,null,null,null,null,"1x týdně (denně)","Vizuální a akustická prohlídka se zaměřením:"]
[null,null,null,null,null,null,null,null,null,null,null,null,null,"- chod ventilátorů, čerpadel, kompresorů, směsovacích ventilů,"]
[null,null,null,null,null,null,null,null,null,null,null,null,null,"- těsnost výměníků a rozvodů."]
[null,null,null,null,null,null,null,null,null,null,null,null,"1x měsíčně","Vizuální a akustická prohlídka se zaměřením:"]
[null,null,null,null,null,null,null,null,null,null,null,null,null,"      - čistota/zanesení výměníků,"]
[null,null,null,null,null,null,null,null,null,null,null,null,null,"      - celková hlučnost zařízení,"]
[null,null,null,null,null,null,null,null,null,null,null,null,null,"      - ložiska, koncové polohy pohonů,"]
[null,null,null,null,null,null,null,null,null,null,null,null,null,"      - komponenty (ventilátory, klínové řemeny, servomotory, zvlhčovače, filtry, výměníky, uzavírací klapy)."]
[null,null,null,null,null,null,null,null,null,null,null,null,"1x za 3 měsíce","Pravidelná údržba se zaměřením:"]
[null,null,null,null,null,null,null,null,null,null,null,null,null,"      - protočení armatur,"]
[null,null,null,null,null,null,null,null,null,null,null,null,null,"      - vynulování manometrů,"]
[null,null,null,null,null,null,null,null,null,null,null,null,null,"      - kontrola a případná výměna filtrů,"]
[null,null,null,null,null,null,null,null,null,null,null,null,null,"      - čištění teplosměnných ploch výměníků."]
[null,null,null,null,null,null,null,null,null,null,null,null,"1x za rok","Servisní prohlídka se zaměřením:"]
[null,null,null,null,null,null,null,null,null,null,null,null,null,"      - proplach deskových výměníků saponátovým roztokem,"]
[null,null,null,null,null,null,null,null,null,null,null,null,null,"      - velká údržba jednotek zahrnující zejména: ventilátory (mazání ložisek, napínání řemenů), uzavírací     klapky (čištění, seřízení hladkého chodu jednotlivých listů, kontrola těsnosti), parní distributor (kontrola, čištění trysek),"]
[null,null,null,null,null,null,null,null,null,null,null,null,null,"      - kontrola chladicího zařízení, příp. doplnění chladiva servisním technikem chlazení,"]
[null,null,null,null,null,null,null,null,null,null,null,null,null,"     - čištění vzduchovodů a koncových elementů v interiéru i exteriéru (výustky, čisté nástavce, žaluzie,    výfukové tvarovky) vlhkým hadříkem jemným mýdlovým roztokem,"]
[null,null,null,null,null,null,null,null,null,null,null,null,null,"     - prověření těsnosti tlumicích vložek a pružnosti tlumicího PVC-pásu,"]
[null,null,null,null,null,null,null,null,null,null,null,null,null,"     - revize požárních klapek autorizovaným technikem,"]
[null,null,null,null,null,null,null,null,null,null,null,null,null,"     - celkový úklid strojoven."]
[null,null,null,null,null,null,null,null,null,null,null,null,"Ve speciálních případech","V čistých prostorech má provozní řád obsahovat časové údaje pro kontrolní měření počtu částic i mikrobiální kontaminace, běžně 1x ročně, u superčistých prostor 1x měsíčně, ve výjimečných případech denně"]

{"sheet":"Grafy","index":12,"n_rows":157,"n_cols":21,"rows_kept":157,"cut":false,"hidden":false,"merged":[]}
[]
[]
[]
[]
[]
[]
[]
[]
[]
[]
[]
[]
[]
[]
[]
[]
[]
[]
[]
[]
[]
[]
[]
[]
[]
[]
[]
[]
[]
[]
[]
[]
[]
[]
[]
[]
[]
[]
[]
[]
[]
[]
[]
[]
[]
[]
[]
[]
[]
[]
[]
[]
[]
[]
[]
[]
[]
[]
[]
[]
[]
[]
[]
[]
[]
[]
[]
[]
[]
[]
[]
[]
[]
[]
[]
[]
[]
[]
[]
[]
[]
[]
[]
[]
[]
[]
[]
[]
[]
[]
[]
[]
[]
[]
[]
[]
[null,null,null,null,null,"http://www.ssi.cz/uklidove-sluzby"]
[]
[null,null,null,null,null,"http://www.revizekontroly.cz/technicka-zarizeni-budov/item/provoz-a-udrzba-vzduchotechniky"]
[]
[]
[null,null,null,null,null,"http://www.atalian.cz/cisteni-vzduchotechniky"]
[]
[null,null,null,null,null,"http://www.fbs-fbs.cz/index.php?pg=cenik-sprava-nemovitosti"]
[]
[]
[null,null,null,null,null,"http://www.hasici-pristroje.net/cenik/"]
[]
[]
[]
[]
[]
[]
[]
[]
[]
[]
[]
[]
[]
[]
[]
[]
[]
[]
[]
[]
[]
[]
[]
[]
[]
[]
[]
[]
[]
[]
[]
[null,null,null,null,null,null,null,null,null,null,null,null,null,null,null,null,null,{"$f":"IF(Titulní!D29<>Grafy!F143,IF(Tabulky!$C$4=7,Grafy!F143,IF(Tabulky!$C$4=8,Grafy!F148,NA())),NA())","v":{"$error":"#N/A"}}]
[]
[]
[null,null,null,null,null,"Úklid podlah",null,"Cena za 1 m2"]
[null,null,null,null,null,"COOL Facillity s.r.o.","Úklidové služby","EuroProfi Clean v.o.s","Ksena.s.r.o.","D&D s.r.o.","DOLEŽAL-DUHA, s. r. o.","David Plecitý","A.W.I.S.","Herakles","VYČISTÍM CZ","Úklidová četa","AB Prokir spol. s r.o.","RPM Service CZ a.s."]
[null,null,null,null,null,2,2.5,1.7,3,2.5,3,8,7,2.8,4,2.9,10,2]
[null,null,null,null,null,8,8.5,10.3,19.5,11.8,3.2,13.7,1,3.7,0.5,5.7,5.5,6.3]
[]
[null,null,null,null,null,"Úklid sněhu",null,"Cena za 1 m2"]
[null,null,null,null,null,"Detai cleaning","Komplexní úklid","Dopareal","Šticha a syn s.r.o.","Miroslav Mlezviva","A.W.I.S.","Herakles"]
[null,null,null,null,null,13,7,8,2.4,5,5,3]
[null,null,null,null,null,21.3,10.4,13.4,11.5,26.8,1,3.7]
[]
[]
[null,null,null,null,null,"Graf",null,{"$f":"IF(Tabulky!C4=7,Grafy!H142,Grafy!H147)","v":"Cena za 1 m2"},null,null,"Vzdálenost KM"]
[null,null,null,null,null,{"$f":"IF(Tabulky!$C$4=7,Grafy!F143,IF(Tabulky!$C$4=8,Grafy!F148,NA()))","v":{"$error":"#N/A"}},{"$f":"IF(Tabulky!$C$4=7,Grafy!G143,IF(Tabulky!$C$4=8,Grafy!G148,NA()))","v":{"$error":"#N/A"}},{"$f":"IF(Tabulky!$C$4=7,Grafy!H143,IF(Tabulky!$C$4=8,Grafy!H148,NA()))","v":{"$error":"#N/A"}},{"$f":"IF(Tabulky!$C$4=7,Grafy!I143,IF(Tabulky!$C$4=8,Grafy!I148,NA()))","v":{"$error":"#N/A"}},{"$f":"IF(Tabulky!$C$4=7,Grafy!J143,IF(Tabulky!$C$4=8,Grafy!J148,NA()))","v":{"$error":"#N/A"}},{"$f":"IF(Tabulky!$C$4=7,Grafy!K143,IF(Tabulky!$C$4=8,Grafy!K148,NA()))","v":{"$error":"#N/A"}},{"$f":"IF(Tabulky!$C$4=7,Grafy!L143,IF(Tabulky!$C$4=8,Grafy!L148,NA()))","v":{"$error":"#N/A"}},{"$f":"IF(Tabulky!$C$4=7,Grafy!M143,IF(Tabulky!$C$4=8,Grafy!M148,NA()))","v":{"$error":"#N/A"}},{"$f":"IF(Tabulky!$C$4=7,Grafy!N143,IF(Tabulky!$C$4=8,Grafy!N148,NA()))","v":{"$error":"#N/A"}},{"$f":"IF(Tabulky!$C$4=7,Grafy!O143,IF(Tabulky!$C$4=8,Grafy!O148,NA()))","v":{"$error":"#N/A"}},{"$f":"IF(Tabulky!$C$4=7,Grafy!P143,IF(Tabulky!$C$4=8,Grafy!P148,NA()))","v":{"$error":"#N/A"}},{"$f":"IF(Tabulky!$C$4=7,Grafy!Q143,IF(Tabulky!$C$4=8,Grafy!Q148,NA()))","v":{"$error":"#N/A"}},{"$f":"IF(Tabulky!$C$4=7,Grafy!R143,IF(Tabulky!$C$4=8,Grafy!R148,NA()))","v":{"$error":"#N/A"}},null,null,{"$f":"Titulní!D29","v":"RPM Service CZ a.s."}]
[null,null,null,null,null,{"$f":"IF(Tabulky!$C$4=7,Grafy!F144,IF(Tabulky!$C$4=8,Grafy!F149,NA()))","v":{"$error":"#N/A"}},{"$f":"IF(Tabulky!$C$4=7,Grafy!G144,IF(Tabulky!$C$4=8,Grafy!G149,NA()))","v":{"$error":"#N/A"}},{"$f":"IF(Tabulky!$C$4=7,Grafy!H144,IF(Tabulky!$C$4=8,Grafy!H149,NA()))","v":{"$error":"#N/A"}},{"$f":"IF(Tabulky!$C$4=7,Grafy!I144,IF(Tabulky!$C$4=8,Grafy!I149,NA()))","v":{"$error":"#N/A"}},{"$f":"IF(Tabulky!$C$4=7,Grafy!J144,IF(Tabulky!$C$4=8,Grafy!J149,NA()))","v":{"$error":"#N/A"}},{"$f":"IF(Tabulky!$C$4=7,Grafy!K144,IF(Tabulky!$C$4=8,Grafy!K149,NA()))","v":{"$error":"#N/A"}},{"$f":"IF(Tabulky!$C$4=7,Grafy!L144,IF(Tabulky!$C$4=8,Grafy!L149,NA()))","v":{"$error":"#N/A"}},{"$f":"IF(Tabulky!$C$4=7,Grafy!M144,IF(Tabulky!$C$4=8,Grafy!M149,NA()))","v":{"$error":"#N/A"}},{"$f":"IF(Tabulky!$C$4=7,Grafy!N144,IF(Tabulky!$C$4=8,Grafy!N149,NA()))","v":{"$error":"#N/A"}},{"$f":"IF(Tabulky!$C$4=7,Grafy!O144,IF(Tabulky!$C$4=8,Grafy!O149,NA()))","v":{"$error":"#N/A"}},{"$f":"IF(Tabulky!$C$4=7,Grafy!P144,IF(Tabulky!$C$4=8,Grafy!P149,NA()))","v":{"$error":"#N/A"}},{"$f":"IF(Tabulky!$C$4=7,Grafy!Q144,IF(Tabulky!$C$4=8,Grafy!Q149,NA()))","v":{"$error":"#N/A"}},{"$f":"IF(Tabulky!$C$4=7,Grafy!R144,IF(Tabulky!$C$4=8,Grafy!R149,NA()))","v":{"$error":"#N/A"}},null,null,{"$f":"Titulní!D37","v":6}]
[null,null,null,null,null,{"$f":"IF(Tabulky!$C$4=7,Grafy!F143,IF(Tabulky!$C$4=8,Grafy!F148,NA()))","v":{"$error":"#N/A"}},{"$f":"IF(Tabulky!$C$4=7,Grafy!G143,IF(Tabulky!$C$4=8,Grafy!G148,NA()))","v":{"$error":"#N/A"}},{"$f":"IF(Tabulky!$C$4=7,Grafy!H143,IF(Tabulky!$C$4=8,Grafy!H148,NA()))","v":{"$error":"#N/A"}},{"$f":"IF(Tabulky!$C$4=7,Grafy!I143,IF(Tabulky!$C$4=8,Grafy!I148,NA()))","v":{"$error":"#N/A"}},{"$f":"IF(Tabulky!$C$4=7,Grafy!J143,IF(Tabulky!$C$4=8,Grafy!J148,NA()))","v":{"$error":"#N/A"}},{"$f":"IF(Tabulky!$C$4=7,Grafy!K143,IF(Tabulky!$C$4=8,Grafy!K148,NA()))","v":{"$error":"#N/A"}},{"$f":"IF(Tabulky!$C$4=7,Grafy!L143,IF(Tabulky!$C$4=8,Grafy!L148,NA()))","v":{"$error":"#N/A"}},{"$f":"IF(Tabulky!$C$4=7,Grafy!M143,IF(Tabulky!$C$4=8,Grafy!M148,NA()))","v":{"$error":"#N/A"}},{"$f":"IF(Tabulky!$C$4=7,Grafy!N143,IF(Tabulky!$C$4=8,Grafy!N148,NA()))","v":{"$error":"#N/A"}},{"$f":"IF(Tabulky!$C$4=7,Grafy!O143,IF(Tabulky!$C$4=8,Grafy!O148,NA()))","v":{"$error":"#N/A"}},{"$f":"IF(Tabulky!$C$4=7,Grafy!P143,IF(Tabulky!$C$4=8,Grafy!P148,NA()))","v":{"$error":"#N/A"}},{"$f":"IF(Tabulky!$C$4=7,Grafy!Q143,IF(Tabulky!$C$4=8,Grafy!Q148,NA()))","v":{"$error":"#N/A"}},{"$f":"IF(Tabulky!$C$4=7,Grafy!R143,IF(Tabulky!$C$4=8,Grafy!R148,NA()))","v":{"$error":"#N/A"}}]
[null,null,null,null,null,{"$f":"IF(Tabulky!$C$4=7,Grafy!F145,IF(Tabulky!$C$4=8,Grafy!F150,NA()))","v":{"$error":"#N/A"}},{"$f":"IF(Tabulky!$C$4=7,Grafy!G145,IF(Tabulky!$C$4=8,Grafy!G150,NA()))","v":{"$error":"#N/A"}},{"$f":"IF(Tabulky!$C$4=7,Grafy!H145,IF(Tabulky!$C$4=8,Grafy!H150,NA()))","v":{"$error":"#N/A"}},{"$f":"IF(Tabulky!$C$4=7,Grafy!I145,IF(Tabulky!$C$4=8,Grafy!I150,NA()))","v":{"$error":"#N/A"}},{"$f":"IF(Tabulky!$C$4=7,Grafy!J145,IF(Tabulky!$C$4=8,Grafy!J150,NA()))","v":{"$error":"#N/A"}},{"$f":"IF(Tabulky!$C$4=7,Grafy!K145,IF(Tabulky!$C$4=8,Grafy!K150,NA()))","v":{"$error":"#N/A"}},{"$f":"IF(Tabulky!$C$4=7,Grafy!L145,IF(Tabulky!$C$4=8,Grafy!L150,NA()))","v":{"$error":"#N/A"}},{"$f":"IF(Tabulky!$C$4=7,Grafy!M145,IF(Tabulky!$C$4=8,Grafy!M150,NA()))","v":{"$error":"#N/A"}},{"$f":"IF(Tabulky!$C$4=7,Grafy!N145,IF(Tabulky!$C$4=8,Grafy!N150,NA()))","v":{"$error":"#N/A"}},{"$f":"IF(Tabulky!$C$4=7,Grafy!O145,IF(Tabulky!$C$4=8,Grafy!O150,NA()))","v":{"$error":"#N/A"}},{"$f":"IF(Tabulky!$C$4=7,Grafy!P145,IF(Tabulky!$C$4=8,Grafy!P150,NA()))","v":{"$error":"#N/A"}},{"$f":"IF(Tabulky!$C$4=7,Grafy!Q145,IF(Tabulky!$C$4=8,Grafy!Q150,NA()))","v":{"$error":"#N/A"}},{"$f":"IF(Tabulky!$C$4=7,Grafy!R145,IF(Tabulky!$C$4=8,Grafy!R150,NA()))","v":{"$error":"#N/A"}},null,null,{"$f":"Titulní!D36","v":6.3}]

{"sheet":"List1","index":13,"n_rows":64,"n_cols":6,"rows_kept":64,"cut":false,"hidden":false,"merged":[]}
[]
["podlahy","Název poskytovatele","Město","Cena služby\nza 1m2"]
[null,"COOL Facillity s.r.o.","Praha",2]
[null,"Úklidové služby","Praha",2.5]
[null,"EuroProfi Clean v.o.s","Praha",1.7]
[null,"Ksena.s.r.o.","Praha",3]
[null,"D&D s.r.o.","Praha",2.5]
[null,"DOLEŽAL-DUHA, s. r. o.","Praha",3,"Praha",{"$f":"AVERAGE(D3:D15,D24)","v":4.2428571428571429}]
[null,"David Plecitý","Praha",8,"Plzeň",{"$f":"AVERAGE(D18,D19,D20,D21,D22)","v":7.4}]
[null,"A.W.I.S.","Praha",7,"Středočeský kraj",{"$f":"AVERAGE(D23,D25,D26,D17,D16)","v":12.4}]
[null,"Herakles","Praha",2.8]
[null,"VYČISTÍM CZ","Praha",4]
[null,"Úklidová četa","Praha",2.9]
[null,"AB Prokir spol. s r.o.","Praha",10]
[null,"RPM Service CZ a.s.","Praha",2]
[null,"INUS Příbram s.r.o.","Příbram",10]
[null,"Vanost s.r.o.","Příbram",19]
[null,"SvoboDo","Plzeň",6]
[null,"Uklid-udrzba-plzen","Plzeň",12]
[null,"ÚKLID-PLZEŇ.EU","Mýto",4]
[null,"Úklidové služby Plzeň","Plzeň",4]
[null,"ÚKLID PRESTO, s.r.o.","Plzeň",11]
[null,"CLEAN","České Budějovice",15]
[null,"AB Prokir spol. s r.o.","Praha",8]
[null,"Andílci s.r.o.","Hradec Králové",5]
[null,"Richard Dvořák","České Budějovice",13]
[null,"KATEŘINA BETLACHOVÁ","Plzeň",16]
[]
["okna"]
[null,"COOL Facillity s.r.o.","Praha",6]
[null,"Úklidové služby","Praha",8]
[null,"EuroProfi Clean v.o.s","Praha",11]
[null,"Ksena.s.r.o.","Praha",13]
[null,"D&D s.r.o.","Praha",10]
[null,"DOLEŽAL-DUHA, s. r. o.","Praha",12]
[null,"David Plecitý","Praha",10]
[null,"A.W.I.S.","Praha",12]
[null,"Herakles","Praha",8]
[null,"VYČISTÍM CZ","Praha",14]
[null,"Mytí oken s.r.o.","Praha",8]
[null,"Úklidová četa","Praha",15]
[null,"AB Prokir spol. s r.o.","Praha",9.5]
[null,"RPM Service CZ a.s.","Praha",6,"Praha",{"$f":"AVERAGE(D30:D42,D43,D57)","v":10.133333333333333}]
[null,"INUS Příbram s.r.o.","Příbram",6,"Plzeň",{"$f":"AVERAGE(D49,D50,D51,D52,D53,D61)","v":14.75}]
[null,"Gabriela Zetochová ","Příbram",12,"Středočeský",{"$f":"AVERAGE(D44,D45,D46,D47,D58)","v":11.9}]
[null,"Vanost s.r.o.","Příbram",13]
[null,"ALEŠ ZEMAN-úklidové práce","Kladno",16]
[null,"Housekeeping s.r.o.","Praha",10]
[null,"SvoboDo","Plzeň",14]
[null,"Uklid-udrzba-plzen","Plzeň",5.5]
[null,"ÚKLID-PLZEŇ.EU","Mýto",15]
[null,"Úklidové služby Plzeň","Plzeň",14]
[null,"ÚKLID PRESTO, s.r.o.","Plzeň",16]
[null,"BOKAS s.r.o.","České Budějovice",15]
[null,"Bittner","České Budějovice",27]
[null,"CLEAN","České Budějovice",25]
[null,"AB Prokir spol. s r.o.","Praha",9.5]
[null,"Andílci s.r.o.","Hradec Králové",12.5]
[null,"Richard Dvořák","České Budějovice",23]
[null,"Bittner","České Budějovice",27]
[null,"KATEŘINA BETLACHOVÁ","Plzeň",24]
[]
[]
["obklady"]